Workbook

Sheet Template Instructions
C3: This Total Cost of Ownership (TCO) calculator is designed to help you understand, compare, and communicate the total cost (which includes both the direct and indirect costs) of up to three items. You might want to compare a new tool or solution to an existing one, compare multiple new technologies you are evaluating, or review and assess your various approaches to how you manage your IT environment. No matter what the scope of your assessment is, this calculator can help you look into the past and present, helping you compute and share future costs in a comprehensive, holistic way.
C5: This calculator is best used within Microsoft Excel; the formulas and dashboards are most congruent with this platform. Should you decide to use alternative spreadsheet programs you may find certain graphs and charts do not render correctly.
C9: To get started, fill in the cells below | L9: To use this calculator, follow these steps:
K10: 1 | M10: Go to the tab labeled OPTION 1: to begin your assessment of the first item.
C11: Organization Name | F11: Company ABC | K11: 2 | M11: List and categorize everything that may be related to the item you're evaluating, using the six categories as a guide to organize your inputs.
C12: Number of employees | F12: 250 | K12: 3 | M12: Fill out only the highlighted cells in each row. All other cells will auto populate or auto calculate.
C13: Number of locations (offices, storefronts, shared workspaces, etc) | F13: 1
C14: Workplace environment (choose the best option from the dropdown) | F14: Hybrid | L14: The information you add here will populate throughout the tool and influence certain calculations; you can change these figures at any time to see how they impact the final assessment. While we created three tabs so you can compare three different solutions, you can also use this calculator to assess the total cost of ownership of a single item.
C15: Organization Growth Factor* | F15: 1
C16: US Inflation Rate (default value based on 10-year average) | F16: 0.021
C17: Option 1 | F17: Existing Infrastructure | L17: Use the buttons on this page to take you directly to the different tabs contained within the calculator.
C18: Option 2 (if applicable) | F18: Cloud Alternative
D19: Option 3 (if applicable)
C20: Assessment Timeframe (in years) | F20: 5
C21: Goal of the Assessment (a brief description of what you are comparing or assessing, and why) | F21: Company ABC has on-prem infrastructure and is comparing the TCO of moving to the cloud vs. keeping their legacy infrastructure as-is over the course of 5 years. Company ABC has had its currrent legacy infrastructure for the past 10 years; as such, past costs will stretch as far back as 10 years.
C22: Your Name
C23: Date(s) of Assessment | F23: Start Date | G23: End Date
C25: *Growth factor is used to project organizational growth over the timeframe indicated above; if you aren't sure what this should be, use a value of 1 to represent slow to no growth. If you wish to use a more complex calculation, see the Formulas tab for more information.
A28: © 2022 JumpCloud Inc. All rights reserved. JUMPCLOUD EXPRESSLY DISCLAIMS ALL REPRESENTATIONS, WARRANTIES, OR CONDITIONS OF ANY KIND, EXPRESS OR IMPLIED, INCLUDING ANY AND ALL REPRESENTATIONS, WARRANTIES, OR CONDITIONS OF TITLE, NON-INFRINGEMENT, MERCHANTABILITY, FITNESS FOR A PARTICULAR PURPOSE, ACCURACY, CONTINUOUS OR ERROR-FREE OPERATION FROM OR RELATING TO THIS CALCULATOR.

Sheet Option 1
A1: ='Template Instructions'!F17 -> Existing Infrastructure | B1: ='Reference Formulas'!Q6 -> 12485391 | C1: BE ADVISED Inputs should be placed into shaded cells only; cells in white and hidden rows contain calculations and formulas. Tampering or adjusting these cells and rows can break functionality and usability throughout the calculator. | G1: For Past/YTD | J1: For Future Projections | S1: Lifetime
A2: Item Category | B2: Item | C2: Notes | D2: Cost Per Unit | E2: Quantity | F2: Total Initial Cost | G2: What is the Recurring Cost? | H2: Years Owned / Recurred | I2: YTD TCO | J2: Is this a Future Recurring Cost? | K2: Future Yearly Recurring Cost | L2: Future Cost (Recurring) | M2: Ad Hoc Additions | N2: Year to Add | O2: Future Cost (Ad Hoc) | P2: EOL Cost | Q2: EOL Gain | R2: Projected TCO | S2: Item TCO
A3: Infrastructure Equipment | D3: =SUM($D4:$D28) -> 35850 | F3: =SUM(F$4:F$28) -> 220750 | I3: =SUM($I4:$I28) -> 238350 | L3: =SUM($L4:$L28) -> 24409 | O3: =SUM($O4:$O28) -> 169483.0208 | R3: =SUM($R4:$R28) -> 193892 | S3: =SUM($S4:$S28) -> 432242
F4: =ROUND($D4:$D28*$E4:$E28,0) -> 0 | I4: =ROUND(IF($G4:$G28>0,($G4:$G28*($H4:$H28-1)+$F4:$F28),$F4:$F28),0) -> 0 | L4: =ROUND(IF($J4:$J28="no",0,(($K4:$K28*'Template Instructions'!$F$20)*(1+'Template Instructions'!$F$16)^'Template Instructions'!$F$20*'Template Instructions'!$F$15)),0) -> 0 | O4: =ROUND($M4:$M28*$D4:$D28,0)*(1+'Template Instructions'!$F$16)^($N4:$N28) -> 0 | R4: =ROUND($L4:$L28+$O4:$O28+$Q4:$Q28-$P4:$P28,0) -> 0 | S4: =ROUND($I4:$I28+$R4:$R28,0) -> 0
A5: Servers | B5: Servers | C5: Will need update in 2027 (year 5) | D5: 5000 | E5: 10 | F5: 50000 | H5: 5 | I5: 50000 | J5: No | L5: 0 | M5: 10 | N5: 5 | O5: 55475.17932 | R5: 55475 | S5: 105475
A6: Servers | B6: Server software | C6: Software + licensing | D6: 8750 | E6: 1 | F6: 8750 | H6: 5 | I6: 8750 | J6: No | L6: 0 | M6: 0 | N6: 0 | O6: 0 | R6: 0 | S6: 8750
A7: Servers | B7: Server rack | D7: 1000 | E7: 1 | F7: 1000 | H7: 5 | I7: 1000 | J7: No | L7: 0 | M7: 0 | N7: 0 | O7: 0 | R7: 0 | S7: 1000
A8: Networking Equipment | B8: Switches | D8: 6000 | E8: 12 | F8: 72000 | H8: 5 | I8: 72000 | J8: No | L8: 0 | M8: 6 | N8: 5 | O8: 39942.12911 | R8: 39942 | S8: 111942
A9: Networking Equipment | B9: Access points | D9: 500 | E9: 18 | F9: 9000 | H9: 5 | I9: 9000 | J9: No | L9: 0 | M9: 12 | N9: 3 | O9: 6385.993566 | R9: 6386 | S9: 15386
A10: Networking Equipment | B10: Firewalls | C10: Next-generation firewall with VPN | D10: 2500 | E10: 4 | F10: 10000 | H10: 5 | I10: 10000 | J10: No | L10: 0 | M10: 0 | N10: 0 | O10: 0 | R10: 0 | S10: 10000
A11: Networking Equipment | B11: Firewall licensing | C11: Yearly license | D11: 1000 | E11: 4 | F11: 4000 | G11: 4400 | H11: 5 | I11: 21600 | J11: Yes | K11: 4400 | L11: 24409 | M11: 0 | N11: 0 | O11: 0 | R11: 24409 | S11: 46009
A12: Networking Equipment | B12: WLAN controller | D12: 5000 | E12: 1 | F12: 5000 | H12: 5 | I12: 5000 | J12: No | L12: 0 | M12: 0 | N12: 0 | O12: 0 | R12: 0 | S12: 5000
A13: Software and Licensing | B13: On-site backup. To upgrade in 5 years | C13: 10 duplicate servers (and licenses) | D13: 6100 | E13: 10 | F13: 61000 | H13: 5 | I13: 61000 | J13: No | L13: 0 | M13: 10 | N13: 5 | O13: 67679.71878 | R13: 67680 | S13: 128680
F14: 0 | I14: 0 | L14: 0 | O14: 0 | R14: 0 | S14: 0
F15: 0 | I15: 0 | L15: 0 | O15: 0 | R15: 0 | S15: 0
F16: 0 | I16: 0 | L16: 0 | O16: 0 | R16: 0 | S16: 0
F17: 0 | I17: 0 | L17: 0 | O17: 0 | R17: 0 | S17: 0
F18: 0 | I18: 0 | L18: 0 | O18: 0 | R18: 0 | S18: 0
F19: 0 | I19: 0 | L19: 0 | O19: 0 | R19: 0 | S19: 0
F20: 0 | I20: 0 | L20: 0 | O20: 0 | R20: 0 | S20: 0
F21: 0 | I21: 0 | L21: 0 | O21: 0 | R21: 0 | S21: 0
F22: 0 | I22: 0 | L22: 0 | O22: 0 | R22: 0 | S22: 0
F23: 0 | I23: 0 | L23: 0 | O23: 0 | R23: 0 | S23: 0
F24: 0 | I24: 0 | L24: 0 | O24: 0 | R24: 0 | S24: 0
F25: 0 | I25: 0 | L25: 0 | O25: 0 | R25: 0 | S25: 0
F26: 0 | I26: 0 | L26: 0 | O26: 0 | R26: 0 | S26: 0
F27: 0 | I27: 0 | L27: 0 | O27: 0 | R27: 0 | S27: 0
F28: 0 | I28: 0 | L28: 0 | O28: 0 | R28: 0 | S28: 0
A29: Data Center / Hosting Costs | D29: =SUM($D30:$D56) -> 73132 | F29: =SUM($F30:$F54) -> 96880 | I29: =SUM($I30:$I54) -> 587740 | L29: =SUM($L30:$L54) -> 277597 | O29: =SUM($O30:$O54) -> 0 | R29: =SUM($R30:$R54) -> 277597 | S29: =SUM($S30:$S54) -> 865337
F30: =ROUND($D30:$D54*$E30:$E54,0) -> 0 | I30: =ROUND(IF($G30:$G54>0,($G30:$G54*($H30:$H54-1)+$F30:$F54), $F30:$F54),0) -> 0 | L30: =ROUND(IF($J30:$J54="no",0,(($K30:$K54*'Template Instructions'!$F$20)*(1+'Template Instructions'!$F$16)^'Template Instructions'!$F$20*'Template Instructions'!$F$15)),0) -> 0 | O30: =ROUND($M30:$M54*$D30:$D54,0)*(1+'Template Instructions'!$F$16)^($N30:$N54) -> 0 | R30: =ROUND($L30:$L54+$O30:$O54+$Q30:$Q54-$P30:$P54,0) -> 0 | S30: =ROUND($I30:$I54+$R30:$R54,0) -> 0
A31: Utilities | B31: HVAC | C31: $1100/mo; 13200 year (duplicated - one for offsite backup) | D31: 13200 | E31: 2 | F31: 26400 | G31: =F31 -> 26400 | H31: 10 | I31: 264000 | J31: Yes | K31: 26400 | L31: 146454 | O31: 0 | R31: 146454 | S31: 410454
A32: Rent/Mortgage | B32: Real estate | C32: $500/mo; $6000 per year (duplicated - one for offsite backup) | D32: 6000 | E32: 2 | F32: 12000 | G32: 12000 | H32: 10 | I32: 120000 | J32: Yes | K32: 12000 | L32: 66570 | O32: 0 | R32: 66570 | S32: 186570
A33: Insurance | B33: Insurance | C33: $45/mo; $540/year | D33: 540 | E33: 2 | F33: 1080 | G33: 540 | H33: 10 | I33: 5940 | J33: Yes | K33: 540 | L33: 2996 | O33: 0 | R33: 2996 | S33: 8936
A34: Utilities | B34: Power | C34: $500/mo/branch; 6000/year/branch | D34: 6000 | E34: 2 | F34: 12000 | G34: 7200 | H34: 10 | I34: 76800 | J34: Yes | K34: 7200 | L34: 39942 | O34: 0 | R34: 39942 | S34: 116742
A35: Utilities | B35: Generator | C35: enterprise generator | D35: 40000 | E35: 1 | F35: 40000 | G35: 6000 | H35: 10 | I35: 94000 | J35: No | L35: 0 | O35: 0 | R35: 0 | S35: 94000
A36: Utilities | B36: Internet | C36: 2,000/mo*12 | D36: 2400 | E36: 1 | F36: 2400 | G36: 2400 | H36: 10 | I36: 24000 | J36: Yes | K36: 2400 | L36: 13314 | O36: 0 | R36: 13314 | S36: 37314
A37: Security | B37: Security | C37: door security/alarm system; cameras - $1500 per branch per year | D37: 1500 | E37: 2 | F37: 3000 | G37: 0 | H37: 10 | I37: 3000 | J37: Yes | K37: 1500 | L37: 8321 | O37: 0 | R37: 8321 | S37: 11321
F38: 0 | I38: 0 | L38: 0 | O38: 0 | R38: 0 | S38: 0
F39: 0 | I39: 0 | L39: 0 | O39: 0 | R39: 0 | S39: 0
F40: 0 | I40: 0 | L40: 0 | O40: 0 | R40: 0 | S40: 0
F41: 0 | I41: 0 | L41: 0 | O41: 0 | R41: 0 | S41: 0
F42: 0 | I42: 0 | L42: 0 | O42: 0 | R42: 0 | S42: 0
F43: 0 | I43: 0 | L43: 0 | O43: 0 | R43: 0 | S43: 0
F44: 0 | I44: 0 | L44: 0 | O44: 0 | R44: 0 | S44: 0
F45: 0 | I45: 0 | L45: 0 | O45: 0 | R45: 0 | S45: 0
F46: 0 | I46: 0 | L46: 0 | O46: 0 | R46: 0 | S46: 0
F47: 0 | I47: 0 | L47: 0 | O47: 0 | R47: 0 | S47: 0
F48: 0 | I48: 0 | L48: 0 | O48: 0 | R48: 0 | S48: 0
F49: 0 | I49: 0 | L49: 0 | O49: 0 | R49: 0 | S49: 0
F50: 0 | I50: 0 | L50: 0 | O50: 0 | R50: 0 | S50: 0
F51: 0 | I51: 0 | L51: 0 | O51: 0 | R51: 0 | S51: 0
F52: 0 | I52: 0 | L52: 0 | O52: 0 | R52: 0 | S52: 0
F53: 0 | I53: 0 | L53: 0 | O53: 0 | R53: 0 | S53: 0
F54: 0 | I54: 0 | L54: 0 | O54: 0 | R54: 0 | S54: 0
A55: Software and Applications | D55: =SUM($D56:$D80) -> 3492 | F55: =SUM($F56:$F80) -> 235080 | I55: =SUM($I56:$I80) -> 1275480 | L55: =SUM($L56:$L80) -> 1304111 | O55: =SUM($O56:$O80) -> 0 | R55: =SUM($R56:$R80) -> 1304111 | S55: =SUM($S56:$S80) -> 2579591
F56: =ROUND($D56:$D80*$E56:$E80,0) -> 0 | I56: =ROUND(IF($G56:$G80>0,($G56:$G80*($H56:$H80-1)+$F56:$F80),$F56:$F80),0) -> 0 | J56: Yes | L56: =ROUND(IF($J56:$J80="no",0,(($K56:$K80*'Template Instructions'!$F$20)*(1+'Template Instructions'!$F$16)^'Template Instructions'!$F$20*'Template Instructions'!$F$15)),0) -> 0 | M56: 0 | N56: 0 | O56: =ROUND($M56:$M80*$D56:$D80,0)*(1+'Template Instructions'!$F$16)^($N56:$N80) -> 0 | R56: =ROUND($L56:$L80 +$O56:$O80+$Q56:$Q80-$P56:$P80,0) -> 0 | S56: =ROUND($I56:$I80+$R56:$R80,0) -> 0
A57: IT Solutions | B57: MFA | C57: $9/user/mo | D57: 108 | E57: 250 | F57: 27000 | G57: 27000 | H57: 3 | I57: 81000 | J57: Yes | K57: 27000 | L57: 149783 | O57: 0 | R57: 149783 | S57: 230783
A58: Business Software | B58: Office suite | C58: $23/user/mo | D58: 276 | E58: 250 | F58: 69000 | G58: 69000 | H58: 10 | I58: 690000 | J58: Yes | K58: 69000 | L58: 382779 | O58: 0 | R58: 382779 | S58: 1072779
A59: SaaS Solutions | B59: Finance management | C59: $90/mo; $1080/year | D59: 1080 | E59: 1 | F59: 1080 | G59: 1080 | H59: 6 | I59: 6480 | J59: Yes | K59: 1080 | L59: 5991 | O59: 0 | R59: 5991 | S59: 12471
A60: Business Software | B60: HR platform | C60: $14/user/mo; 168/user/yr | D60: 168 | E60: 250 | F60: 42000 | G60: 42000 | H60: 5 | I60: 210000 | J60: Yes | K60: 42000 | L60: 232996 | O60: 0 | R60: 232996 | S60: 442996
A61: Business Software | B61: CRM | C61: 150/user/mo; 1800/user/yr. 45 licenses: sales + execs | D61: 1800 | E61: 45 | F61: 81000 | G61: 81000 | H61: 3 | I61: 243000 | J61: Yes | K61: 81000 | L61: 449349 | O61: 0 | R61: 449349 | S61: 692349
A62: IT Solutions | B62: MDM | C62: $5/user/mo; 60/user/yr | D62: 60 | E62: 250 | F62: 15000 | G62: 15000 | H62: 3 | I62: 45000 | J62: Yes | K62: 15000 | L62: 83213 | O62: 0 | R62: 83213 | S62: 128213
F63: 0 | I63: 0 | L63: 0 | O63: 0 | R63: 0 | S63: 0
F64: 0 | I64: 0 | L64: 0 | O64: 0 | R64: 0 | S64: 0
F65: 0 | I65: 0 | L65: 0 | O65: 0 | R65: 0 | S65: 0
F66: 0 | I66: 0 | L66: 0 | O66: 0 | R66: 0 | S66: 0
F67: 0 | I67: 0 | L67: 0 | O67: 0 | R67: 0 | S67: 0
F68: 0 | I68: 0 | L68: 0 | O68: 0 | R68: 0 | S68: 0
F69: 0 | I69: 0 | L69: 0 | O69: 0 | R69: 0 | S69: 0
F70: 0 | I70: 0 | L70: 0 | O70: 0 | R70: 0 | S70: 0
F71: 0 | I71: 0 | L71: 0 | O71: 0 | R71: 0 | S71: 0
F72: 0 | I72: 0 | L72: 0 | O72: 0 | R72: 0 | S72: 0
F73: 0 | I73: 0 | L73: 0 | O73: 0 | R73: 0 | S73: 0
F74: 0 | I74: 0 | L74: 0 | O74: 0 | R74: 0 | S74: 0
F75: 0 | I75: 0 | L75: 0 | O75: 0 | R75: 0 | S75: 0
F76: 0 | I76: 0 | L76: 0 | O76: 0 | R76: 0 | S76: 0
F77: 0 | I77: 0 | L77: 0 | O77: 0 | R77: 0 | S77: 0
F78: 0 | I78: 0 | L78: 0 | O78: 0 | R78: 0 | S78: 0
F79: 0 | I79: 0 | L79: 0 | O79: 0 | R79: 0 | S79: 0
F80: 0 | I80: 0 | L80: 0 | O80: 0 | R80: 0 | S80: 0
A81: Employee Devices and Hardware | D81: =SUM($D82:$D106) -> 2220 | F81: =SUM($F82:$F106) -> 335700 | I81: =SUM($I82:$I106) -> 365100 | L81: =SUM($L82:$L106) -> 81549 | O81: =SUM($O82:$O106) -> 213930.7845 | R81: =SUM(R$82:R$106) -> 295480 | S81: =SUM($S82:$S106) -> 660580
F82: =ROUND($D$82:$D$106*$E$82:$E$106,0) -> 0 | G82: 0 | I82: =ROUND(IF($G$82:$G$106>0,($G$82:$G$106*($H$82:$H$106-1)+$F$82:$F$106), $F$82:$F$106),0) -> 0 | J82: No | L82: =ROUND(IF($J$82:$J$106="no",0,(($K$82:$K$106*'Template Instructions'!$F$20)*(1+'Template Instructions'!$F$16)^'Template Instructions'!$F$20*'Template Instructions'!$F$15)),0) -> 0 | O82: =ROUND($M$82:$M$106*$D$82:$D$106,0)*(1+'Template Instructions'!$F$16)^(N82:N106) -> 0 | R82: =ROUND($L$82:$L$106 +$O$82:$O$106+$Q$82:$Q$106-$P$82:$P$106,0) -> 0 | S82: =ROUND(I82:I106+R82:R106,0) -> 0
A83: Laptops | B83: Laptops | C83: Most laptops will need an upgrade in about 4 years - inflation calculator used | D83: 1200 | E83: 250 | F83: 300000 | G83: 0 | H83: 5 | I83: 300000 | J83: No | L83: 0 | M83: 150 | N83: 3 | O83: 191579.807 | R83: 191580 | S83: 491580
A84: Smartphones | B84: Smart phones | C84: Android phones for sales and executives (35 employees) | D84: 600 | E84: 35 | F84: 21000 | G84: 0 | H84: 3 | I84: 21000 | J84: No | L84: 0 | M84: 35 | N84: 3 | O84: 22350.97748 | R84: 22351 | S84: 43351
A85: Data plans | B85: Data plan for phones | C85: Verizon: $35/line/mo; $420/line/year | D85: 420 | E85: 35 | F85: 14700 | G85: =F85 -> 14700 | H85: 3 | I85: 44100 | J85: Yes | K85: 14700 | L85: 81549 | M85: 0 | N85: 0 | O85: 0 | R85: 81549 | S85: 125649
F86: 0 | I86: 0 | L86: 0 | O86: 0 | R86: 0 | S86: 0
F87: 0 | I87: 0 | L87: 0 | O87: 0 | R87: 0 | S87: 0
F88: 0 | I88: 0 | L88: 0 | O88: 0 | R88: 0 | S88: 0
F89: 0 | I89: 0 | L89: 0 | O89: 0 | R89: 0 | S89: 0
F90: 0 | I90: 0 | L90: 0 | O90: 0 | R90: 0 | S90: 0
F91: 0 | I91: 0 | L91: 0 | O91: 0 | R91: 0 | S91: 0
F92: 0 | I92: 0 | L92: 0 | O92: 0 | R92: 0 | S92: 0
F93: 0 | I93: 0 | L93: 0 | O93: 0 | R93: 0 | S93: 0
F94: 0 | I94: 0 | L94: 0 | O94: 0 | R94: 0 | S94: 0
F95: 0 | I95: 0 | L95: 0 | O95: 0 | R95: 0 | S95: 0
F96: 0 | I96: 0 | L96: 0 | O96: 0 | R96: 0 | S96: 0
F97: 0 | I97: 0 | L97: 0 | O97: 0 | R97: 0 | S97: 0
F98: 0 | I98: 0 | L98: 0 | O98: 0 | R98: 0 | S98: 0
F99: 0 | I99: 0 | L99: 0 | O99: 0 | R99: 0 | S99: 0
F100: 0 | I100: 0 | L100: 0 | O100: 0 | R100: 0 | S100: 0
F101: 0 | I101: 0 | L101: 0 | O101: 0 | R101: 0 | S101: 0
F102: 0 | I102: 0 | L102: 0 | O102: 0 | R102: 0 | S102: 0
F103: 0 | I103: 0 | L103: 0 | O103: 0 | R103: 0 | S103: 0
F104: 0 | I104: 0 | L104: 0 | O104: 0 | R104: 0 | S104: 0
F105: 0 | I105: 0 | L105: 0 | O105: 0 | R105: 0 | S105: 0
F106: 0 | I106: 0 | L106: 0 | O106: 0 | R106: 0 | S106: 0
A107: Personnel and Support | D107: =SUM($D108:$D132) -> 492000 | F107: =SUM($F108:$F132) -> 542000 | I107: =SUM($I108:$I132) -> 5180000 | L107: =SUM($L108:$L132) -> 2729379 | O107: =SUM($O109:$O132) -> 0 | R107: =SUM($R108:$R132) -> 2729379 | S107: =SUM(S$108:S$132) -> 7909379
F108: =ROUND($D108:$D132*$E108:$E132,0) -> 0 | I108: =ROUND(IF($G108:$G132>0,($G108:$G132*($H108:$H132-1)+$F108:$F132),$F108:$F132),0) -> 0 | L108: =ROUND(IF(J$108:J$132="no",0,((K$108:K$132*'Template Instructions'!F20)*(1+'Template Instructions'!F16)^'Template Instructions'!F20*'Template Instructions'!F15)),0) -> 0 | O108: =ROUND($M108:$M132*$D108:$D132,0)*(1+'Template Instructions'!$F$16)^($N108:$N132) -> 0 | R108: =ROUND($L108:$L132 +$O108:$O132+$Q108:$Q132-$P108:$P132,0) -> 0 | S108: =ROUND($I108:$I132+$R108:$R132,0) -> 0
A109: Salaries | B109: Maintenance/configuration/support | C109: About 1/2 of IT team's time attributed to maintenance/configuration/support. Salaries: IT Director: $180,000 Network Security Officer: $160,000 4 IT Admin: avg $130,000 Total per year: $860,000/yr *.5 = $430,000/yr | D109: 430000 | E109: 1 | F109: 430000 | G109: 430000 | H109: 10 | I109: 4300000 | J109: Yes | K109: 430000 | L109: 2385433 | M109: 0 | N109: 0 | O109: 0 | R109: 2385433 | S109: 6685433
A110: Consulting Services | B110: MSP fees | C110: $4000/month | D110: 48000 | E110: 1 | F110: 48000 | G110: 48000 | H110: 5 | I110: 240000 | J110: Yes | K110: 48000 | L110: 266281 | M110: 0 | N110: 0 | O110: 0 | R110: 266281 | S110: 506281
A111: Professional Development | B111: Training/continuing education | C111: Estimated yearly certification | D111: 10000 | E111: 6 | F111: 60000 | G111: 60000 | H111: 10 | I111: 600000 | J111: Yes | K111: 10000 | L111: 55475 | M111: 0 | N111: 0 | O111: 0 | R111: 55475 | S111: 655475
A112: Salaries | B112: System downtime | C112: The cost to rectify unplanned/emergency downtime is about $4,000 per incident. Company ABC experiences this about once a year with its current infrastructure. | D112: 4000 | E112: 1 | F112: 4000 | G112: 4000 | H112: 10 | I112: 40000 | J112: Yes | K112: 4000 | L112: 22190 | M112: 0 | N112: 0 | O112: 0 | R112: 22190 | S112: 62190
F113: 0 | I113: 0 | L113: 0 | O113: 0 | R113: 0 | S113: 0
F114: 0 | I114: 0 | L114: 0 | O114: 0 | R114: 0 | S114: 0
F115: 0 | I115: 0 | L115: 0 | O115: 0 | R115: 0 | S115: 0
F116: 0 | I116: 0 | L116: 0 | O116: 0 | R116: 0 | S116: 0
F117: 0 | I117: 0 | L117: 0 | O117: 0 | R117: 0 | S117: 0
F118: 0 | I118: 0 | L118: 0 | O118: 0 | R118: 0 | S118: 0
F119: 0 | I119: 0 | L119: 0 | O119: 0 | R119: 0 | S119: 0
F120: 0 | I120: 0 | L120: 0 | O120: 0 | R120: 0 | S120: 0
F121: 0 | I121: 0 | L121: 0 | O121: 0 | R121: 0 | S121: 0
F122: 0 | I122: 0 | L122: 0 | O122: 0 | R122: 0 | S122: 0
F123: 0 | I123: 0 | L123: 0 | O123: 0 | R123: 0 | S123: 0
F124: 0 | I124: 0 | L124: 0 | O124: 0 | R124: 0 | S124: 0
F125: 0 | I125: 0 | L125: 0 | O125: 0 | R125: 0 | S125: 0
F126: 0 | I126: 0 | L126: 0 | O126: 0 | R126: 0 | S126: 0
F127: 0 | I127: 0 | L127: 0 | O127: 0 | R127: 0 | S127: 0
F128: 0 | I128: 0 | L128: 0 | O128: 0 | R128: 0 | S128: 0
F129: 0 | I129: 0 | L129: 0 | O129: 0 | R129: 0 | S129: 0
F130: 0 | I130: 0 | L130: 0 | O130: 0 | R130: 0 | S130: 0
F131: 0 | I131: 0 | L131: 0 | O131: 0 | R131: 0 | S131: 0
F132: 0 | I132: 0 | L132: 0 | O132: 0 | R132: 0 | S132: 0
A133: Rollout | D133: =SUM($D134:$D158) -> 504 | F133: =SUM($F134:$F158) -> 19215 | I133: =SUM($I134:$I158) -> 19215 | L133: =SUM($L134:$L158) -> 0 | O133: =SUM($O134:$O158) -> 19046.77115 | R133: =SUM($R134:$R158) -> 19047 | S133: =SUM($S134:$S158) -> 38262
F134: =ROUND($D134:$D158*$E134:$E158,0) -> 0 | I134: =ROUND(IF($G134:$G158>0,($G134:$G158*($H134:$H158-1)+$F134:$F158),$F134:$F158),0) -> 0 | L134: =ROUND(IF($J134:$J158="no",0,(($K134:$K158*'Template Instructions'!$F$20)*(1+'Template Instructions'!$F$16)^'Template Instructions'!$F$20*'Template Instructions'!$F$15)),0) -> 0 | O134: =ROUND($M134:$M158*$D134:$D158,0)*(1+'Template Instructions'!$F$16)^($N134:$N158) -> 0 | R134: =ROUND($L134:$L158+$O134:$O158+$Q134:$Q158-$P134:$P158,0) -> 0 | S134: =ROUND($I134:$I158+$R134:$R158,0) -> 0
A135: Installation & Setup | B135: Installation - server upgrades, year 5 | C135: Time and labor for infrastructure upgrades - about 3h per server = $63/hr; about $189 in labor costs per server. 20 server upgrades projected in year 5. See "Ad Hoc Additions" | D135: 189 | E135: 20 | F135: 3780 | I135: 3780 | J135: No | L135: 0 | M135: 20 | N135: 5 | O135: 4193.923557 | R135: 4194 | S135: 7974
A136: Installation & Setup | B136: Installation - switch upgrades, year 5 | C136: Time and labor for infrastructure upgrades - about 2h per switch = $126 in labor costs per switch. 6 switch upgrades projected in year 5. See "Ad Hoc Additions" | D136: 126 | E136: 12 | F136: 1512 | I136: 1512 | J136: No | L136: 0 | M136: 6 | N136: 5 | O136: 838.7847114 | R136: 839 | S136: 2351
A137: Installation & Setup | B137: Installation - access point upgrades, year 3 | C137: Time and labor for infrastructure upgrades - about 2h per access point = about $126 in labor costs per switch. 12 AP upgrades projected in year 3. See "Ad Hoc Additions" | D137: 126 | E137: 18 | F137: 2268 | I137: 2268 | J137: No | L137: 0 | M137: 12 | N137: 3 | O137: 1609.270379 | R137: 1609 | S137: 3877
A138: Installation & Setup | B138: Installation - set up new employee devices | C138: Projecting 150 new laptops in year 3; 35 new laptops in year 3. About 1h per device setup at $63 per hour. | D138: 63 | E138: 185 | F138: 11655 | I138: 11655 | J138: No | L138: 0 | M138: 185 | N138: 3 | O138: 12404.7925 | R138: 12405 | S138: 24060
F139: 0 | I139: 0 | L139: 0 | O139: 0 | R139: 0 | S139: 0
F140: 0 | I140: 0 | L140: 0 | O140: 0 | R140: 0 | S140: 0
F141: 0 | I141: 0 | L141: 0 | O141: 0 | R141: 0 | S141: 0
F142: 0 | I142: 0 | L142: 0 | O142: 0 | R142: 0 | S142: 0
F143: 0 | I143: 0 | L143: 0 | O143: 0 | R143: 0 | S143: 0
F144: 0 | I144: 0 | L144: 0 | O144: 0 | R144: 0 | S144: 0
F145: 0 | I145: 0 | L145: 0 | O145: 0 | R145: 0 | S145: 0
F146: 0 | I146: 0 | L146: 0 | O146: 0 | R146: 0 | S146: 0
F147: 0 | I147: 0 | L147: 0 | O147: 0 | R147: 0 | S147: 0
F148: 0 | I148: 0 | L148: 0 | O148: 0 | R148: 0 | S148: 0
F149: 0 | I149: 0 | L149: 0 | O149: 0 | R149: 0 | S149: 0
F150: 0 | I150: 0 | L150: 0 | O150: 0 | R150: 0 | S150: 0
F151: 0 | I151: 0 | L151: 0 | O151: 0 | R151: 0 | S151: 0
F152: 0 | I152: 0 | L152: 0 | O152: 0 | R152: 0 | S152: 0
F153: 0 | I153: 0 | L153: 0 | O153: 0 | R153: 0 | S153: 0
F154: 0 | I154: 0 | L154: 0 | O154: 0 | R154: 0 | S154: 0
F155: 0 | I155: 0 | L155: 0 | O155: 0 | R155: 0 | S155: 0
F156: 0 | I156: 0 | L156: 0 | O156: 0 | R156: 0 | S156: 0
F157: 0 | I157: 0 | L157: 0 | O157: 0 | R157: 0 | S157: 0
F158: 0 | I158: 0 | L158: 0 | O158: 0 | R158: 0 | S158: 0
C159: © 2022 JumpCloud Inc. All rights reserved. JUMPCLOUD EXPRESSLY DISCLAIMS ALL REPRESENTATIONS, WARRANTIES, OR CONDITIONS OF ANY KIND, EXPRESS OR IMPLIED, INCLUDING ANY AND ALL REPRESENTATIONS, WARRANTIES, OR CONDITIONS OF TITLE, NON-INFRINGEMENT, MERCHANTABILITY, FITNESS FOR A PARTICULAR PURPOSE, ACCURACY, CONTINUOUS OR ERROR-FREE OPERATION FROM OR RELATING TO THIS CALCULATOR.

Sheet Option 2
A1: ='Template Instructions'!F18 -> Cloud Alternative | B1: ='Reference Formulas'!Q7 -> 5529438 | C1: BE ADVISED Inputs should be placed into shaded cells only; cells in white and hidden rows contain calculations and formulas. Tampering or adjusting these cells and rows can break functionality and usability throughout the calculator. | G1: For Past/YTD | J1: For Future Projections | S1: Lifetime
A2: Item Category | B2: Item | C2: Notes | D2: Cost Per Unit | E2: Quantity | F2: Total Initial Cost | G2: What is the Recurring Cost? | H2: Years Owned / Recurred | I2: YTD TCO | J2: Is this a Future Recurring Cost? | K2: Future Yearly Recurring Cost | L2: Future Cost (Recurring) | M2: Ad Hoc Additions | N2: Year to Add | O2: Future Cost (Ad Hoc) | P2: EOL Cost | Q2: EOL Gain | R2: Projected TCO | S2: Item TCO
A3: Infrastructure Equipment | D3: =SUM($D4:$D28) -> 9000 | F3: =SUM(F$4:F$28) -> 28000 | I3: =SUM($I4:$I28) -> 45600 | L3: =SUM($L4:$L28) -> 24409 | O3: =SUM($O4:$O28) -> 3192.996783 | R3: =SUM($R4:$R28) -> 27602 | S3: =SUM($S4:$S28) -> 73202
F4: =ROUND($D4:$D28*$E4:$E28,0) -> 0 | I4: =ROUND(IF($G4:$G28>0,($G4:$G28*($H4:$H28-1)+$F4:$F28),$F4:$F28),0) -> 0 | L4: =ROUND(IF($J4:$J28="no",0,(($K4:$K28*'Template Instructions'!$F$20)*(1+'Template Instructions'!$F$16)^'Template Instructions'!$F$20*'Template Instructions'!$F$15)),0) -> 0 | O4: =ROUND($M4:$M28*$D4:$D28,0)*(1+'Template Instructions'!$F$16)^($N4:$N28) -> 0 | R4: =ROUND($L4:$L28+$O4:$O28+$Q4:$Q28-$P4:$P28,0) -> 0 | S4: =ROUND($I4:$I28+$R4:$R28,0) -> 0
A5: Servers | B5: Servers | C5: No longer needed | D5: 0 | E5: 0 | F5: 0 | G5: 0 | H5: 0 | I5: 0 | J5: No | L5: 0 | M5: 0 | N5: 0 | O5: 0 | R5: 0 | S5: 0
A6: Software and Licensing | B6: Server software | C6: No longer needed | D6: 0 | E6: 0 | F6: 0 | G6: 0 | H6: 0 | I6: 0 | J6: No | L6: 0 | M6: 0 | N6: 0 | O6: 0 | R6: 0 | S6: 0
A7: Servers | B7: Server rack | C7: No longer needed | D7: 0 | E7: 0 | F7: 0 | G7: 0 | H7: 0 | I7: 0 | J7: No | L7: 0 | M7: 0 | N7: 0 | O7: 0 | R7: 0 | S7: 0
A8: Networking Equipment | B8: Switches | C8: No longer needed | D8: 0 | E8: 0 | F8: 0 | G8: 0 | H8: 0 | I8: 0 | J8: No | L8: 0 | M8: 0 | N8: 0 | O8: 0 | R8: 0 | S8: 0
A9: Networking Equipment | B9: Access points | D9: 500 | E9: 18 | F9: 9000 | G9: 0 | H9: 5 | I9: 9000 | J9: No | L9: 0 | M9: 6 | N9: 3 | O9: 3192.996783 | R9: 3193 | S9: 12193
A10: Networking Equipment | B10: Firewalls | C10: Next-generation firewall with VPN | D10: 2500 | E10: 4 | F10: 10000 | G10: 0 | H10: 5 | I10: 10000 | J10: No | L10: 0 | M10: 0 | N10: 0 | O10: 0 | R10: 0 | S10: 10000
A11: Networking Equipment | B11: Firewall licensing | C11: Yearly license | D11: 1000 | E11: 4 | F11: 4000 | G11: 4400 | H11: 5 | I11: 21600 | J11: Yes | K11: 4400 | L11: 24409 | M11: 0 | N11: 0 | O11: 0 | R11: 24409 | S11: 46009
A12: Networking Equipment | B12: WLAN controller | D12: 5000 | E12: 1 | F12: 5000 | G12: 0 | H12: 0 | I12: 5000 | J12: No | L12: 0 | M12: 0 | N12: 0 | O12: 0 | R12: 0 | S12: 5000
A13: Software and Licensing | B13: On-site backup. To upgrade in 5 years | C13: No longer needed | D13: 0 | E13: 0 | F13: 0 | G13: 0 | H13: 0 | I13: 0 | J13: No | L13: 0 | M13: 0 | N13: 0 | O13: 0 | R13: 0 | S13: 0
F14: 0 | I14: 0 | L14: 0 | O14: 0 | R14: 0 | S14: 0
F15: 0 | I15: 0 | L15: 0 | O15: 0 | R15: 0 | S15: 0
F16: 0 | I16: 0 | L16: 0 | O16: 0 | R16: 0 | S16: 0
F17: 0 | I17: 0 | L17: 0 | O17: 0 | R17: 0 | S17: 0
F18: 0 | I18: 0 | L18: 0 | O18: 0 | R18: 0 | S18: 0
F19: 0 | I19: 0 | L19: 0 | O19: 0 | R19: 0 | S19: 0
F20: 0 | I20: 0 | L20: 0 | O20: 0 | R20: 0 | S20: 0
F21: 0 | I21: 0 | L21: 0 | O21: 0 | R21: 0 | S21: 0
F22: 0 | I22: 0 | L22: 0 | O22: 0 | R22: 0 | S22: 0
F23: 0 | I23: 0 | L23: 0 | O23: 0 | R23: 0 | S23: 0
F24: 0 | I24: 0 | L24: 0 | O24: 0 | R24: 0 | S24: 0
F25: 0 | I25: 0 | L25: 0 | O25: 0 | R25: 0 | S25: 0
F26: 0 | I26: 0 | L26: 0 | O26: 0 | R26: 0 | S26: 0
F27: 0 | I27: 0 | L27: 0 | O27: 0 | R27: 0 | S27: 0
F28: 0 | I28: 0 | L28: 0 | O28: 0 | R28: 0 | S28: 0
A29: Data Center / Hosting Costs | D29: =SUM($D30:$D41) -> 0 | F29: =SUM($F30:$F41) -> 0 | I29: =SUM($I30:$I41) -> 0 | L29: =SUM($L30:$L41) -> 0 | O29: =SUM($O30:$O41) -> 0 | R29: =SUM($R30:$R41) -> 0 | S29: =SUM($S30:$S41) -> 0
F30: =ROUND($D30:$D54*$E30:$E54,0) -> 0 | I30: =ROUND(IF($G30:$G54>0,($G30:$G54*($H30:$H54-1)+$F30:$F54), $F30:$F54),0) -> 0 | L30: =ROUND(IF($J30:$J54="no",0,(($K30:$K54*'Template Instructions'!$F$20)*(1+'Template Instructions'!$F$16)^'Template Instructions'!$F$20*'Template Instructions'!$F$15)),0) -> 0 | O30: =ROUND($M30:$M54*$D30:$D54,0)*(1+'Template Instructions'!$F$16)^($N30:$N54) -> 0 | R30: =ROUND($L30:$L54+$O30:$O54+$Q30:$Q54-$P30:$P54,0) -> 0 | S30: =ROUND($I30:$I54+$R30:$R54,0) -> 0
A31: Utilities | B31: HVAC | C31: No longer needed | D31: 0 | E31: 0 | F31: 0 | I31: 0 | J31: No | L31: 0 | O31: 0 | R31: 0 | S31: 0
A32: Rent/Mortgage | B32: Real estate | C32: No longer needed | D32: 0 | E32: 0 | F32: 0 | I32: 0 | J32: No | L32: 0 | O32: 0 | R32: 0 | S32: 0
A33: Insurance | B33: Insurance | C33: No longer needed | D33: 0 | E33: 0 | F33: 0 | I33: 0 | J33: No | L33: 0 | O33: 0 | R33: 0 | S33: 0
A34: Utilities | B34: Power | C34: No longer needed | D34: 0 | E34: 0 | F34: 0 | I34: 0 | J34: No | L34: 0 | O34: 0 | R34: 0 | S34: 0
A35: Utilities | B35: Generator | C35: No longer needed | D35: 0 | E35: 0 | F35: 0 | I35: 0 | J35: No | L35: 0 | O35: 0 | R35: 0 | S35: 0
A36: Utilities | B36: Internet | C36: No longer needed | D36: 0 | E36: 0 | F36: 0 | I36: 0 | J36: No | L36: 0 | O36: 0 | R36: 0 | S36: 0
A37: Security | B37: Security | C37: No longer needed | D37: 0 | E37: 0 | F37: 0 | I37: 0 | J37: No | L37: 0 | O37: 0 | R37: 0 | S37: 0
F38: 0 | I38: 0 | L38: 0 | O38: 0 | R38: 0 | S38: 0
F39: 0 | I39: 0 | L39: 0 | O39: 0 | R39: 0 | S39: 0
F40: 0 | I40: 0 | L40: 0 | O40: 0 | R40: 0 | S40: 0
F41: 0 | I41: 0 | L41: 0 | O41: 0 | R41: 0 | S41: 0
F42: 0 | I42: 0 | L42: 0 | O42: 0 | R42: 0 | S42: 0
F43: 0 | I43: 0 | L43: 0 | O43: 0 | R43: 0 | S43: 0
F44: 0 | I44: 0 | L44: 0 | O44: 0 | R44: 0 | S44: 0
F45: 0 | I45: 0 | L45: 0 | O45: 0 | R45: 0 | S45: 0
F46: 0 | I46: 0 | L46: 0 | O46: 0 | R46: 0 | S46: 0
F47: 0 | I47: 0 | L47: 0 | O47: 0 | R47: 0 | S47: 0
F48: 0 | I48: 0 | L48: 0 | O48: 0 | R48: 0 | S48: 0
F49: 0 | I49: 0 | L49: 0 | O49: 0 | R49: 0 | S49: 0
F50: 0 | I50: 0 | L50: 0 | O50: 0 | R50: 0 | S50: 0
F51: 0 | I51: 0 | L51: 0 | O51: 0 | R51: 0 | S51: 0
F52: 0 | I52: 0 | L52: 0 | O52: 0 | R52: 0 | S52: 0
F53: 0 | I53: 0 | L53: 0 | O53: 0 | R53: 0 | S53: 0
F54: 0 | I54: 0 | L54: 0 | O54: 0 | R54: 0 | S54: 0
A55: Software and Applications | D55: =SUM($D56:$D67) -> 3372 | F55: =SUM($F56:$F67) -> 205080 | I55: =SUM($I56:$I67) -> 540480 | L55: =SUM($L56:$L67) -> 688336 | O55: =SUM($O56:$O67) -> 0 | R55: =SUM($R56:$R67) -> 688336 | S55: =SUM($S56:$S67) -> 1228816
F56: =ROUND($D56:$D80*$E56:$E80,0) -> 0 | I56: =ROUND(IF($G56:$G80>0,($G56:$G80*($H56:$H80-1)+$F56:$F80),$F56:$F80),0) -> 0 | J56: Yes | L56: =ROUND(IF($J56:$J80="no",0,(($K56:$K80*'Template Instructions'!$F$20)*(1+'Template Instructions'!$F$16)^'Template Instructions'!$F$20*'Template Instructions'!$F$15)),0) -> 0 | M56: 0 | N56: 0 | O56: =ROUND($M56:$M80*$D56:$D80,0)*(1+'Template Instructions'!$F$16)^($N56:$N80) -> 0 | R56: =ROUND($L56:$L80 +$O56:$O80+$Q56:$Q80-$P56:$P80,0) -> 0 | S56: =ROUND($I56:$I80+$R56:$R80,0) -> 0
A57: IT Solutions | B57: Directory platform | C57: $180/user/year | D57: 180 | E57: 250 | F57: 45000 | G57: 0 | H57: 0 | I57: 45000 | J57: No | L57: 0 | O57: 0 | R57: 0 | S57: 45000
A58: IT Solutions | B58: MFA | C58: no longer needed (provided by directory) | D58: 0 | E58: 0 | F58: 0 | G58: 0 | H58: 0 | I58: 0 | J58: No | L58: 0 | O58: 0 | R58: 0 | S58: 0
A59: SaaS Solutions | B59: Office suite | C59: $144/user/yr | D59: 144 | E59: 250 | F59: 36000 | G59: 0 | H59: 0 | I59: 36000 | J59: No | L59: 0 | O59: 0 | R59: 0 | S59: 36000
A60: Business Software | B60: Finance management | C60: Keep existing: $1080/year | D60: 1080 | E60: 1 | F60: 1080 | G60: 1080 | H60: 6 | I60: 6480 | J60: Yes | K60: 1080 | L60: 5991 | O60: 0 | R60: 5991 | S60: 12471
A61: Business Software | B61: HR platform | C61: Keep existing: $168/user/yr | D61: 168 | E61: 250 | F61: 42000 | G61: 42000 | H61: 5 | I61: 210000 | J61: Yes | K61: 42000 | L61: 232996 | O61: 0 | R61: 232996 | S61: 442996
A62: SaaS Solutions | B62: CRM | C62: Keep existing: $1800/user/yr. 45 licenses: sales + execs | D62: 1800 | E62: 45 | F62: 81000 | G62: 81000 | H62: 3 | I62: 243000 | J62: Yes | K62: 81000 | L62: 449349 | O62: 0 | R62: 449349 | S62: 692349
A63: IT Solutions | B63: MDM | C63: no longer needed (provided by directory) | D63: 0 | E63: 0 | F63: 0 | G63: 0 | H63: 0 | I63: 0 | J63: No | L63: 0 | O63: 0 | R63: 0 | S63: 0
F64: 0 | I64: 0 | L64: 0 | O64: 0 | R64: 0 | S64: 0
F65: 0 | I65: 0 | L65: 0 | O65: 0 | R65: 0 | S65: 0
F66: 0 | I66: 0 | L66: 0 | O66: 0 | R66: 0 | S66: 0
F67: 0 | I67: 0 | L67: 0 | O67: 0 | R67: 0 | S67: 0
F68: 0 | I68: 0 | L68: 0 | O68: 0 | R68: 0 | S68: 0
F69: 0 | I69: 0 | L69: 0 | O69: 0 | R69: 0 | S69: 0
F70: 0 | I70: 0 | L70: 0 | O70: 0 | R70: 0 | S70: 0
F71: 0 | I71: 0 | L71: 0 | O71: 0 | R71: 0 | S71: 0
F72: 0 | I72: 0 | L72: 0 | O72: 0 | R72: 0 | S72: 0
F73: 0 | I73: 0 | L73: 0 | O73: 0 | R73: 0 | S73: 0
F74: 0 | I74: 0 | L74: 0 | O74: 0 | R74: 0 | S74: 0
F75: 0 | I75: 0 | L75: 0 | O75: 0 | R75: 0 | S75: 0
F76: 0 | I76: 0 | L76: 0 | O76: 0 | R76: 0 | S76: 0
F77: 0 | I77: 0 | L77: 0 | O77: 0 | R77: 0 | S77: 0
F78: 0 | I78: 0 | L78: 0 | O78: 0 | R78: 0 | S78: 0
F79: 0 | I79: 0 | L79: 0 | O79: 0 | R79: 0 | S79: 0
F80: 0 | I80: 0 | L80: 0 | O80: 0 | R80: 0 | S80: 0
A81: Employee Devices and Hardware | D81: =SUM($D82:$D106) -> 2220 | F81: =SUM($F82:$F106) -> 335700 | I81: =SUM($I82:$I106) -> 365100 | L81: =SUM($L82:$L106) -> 81549 | O81: =SUM($O82:$O106) -> 217953.9604 | R81: =SUM(R$82:R$106) -> 299503 | S81: =SUM($S82:$S106) -> 664603
F82: =ROUND($D$82:$D$106*$E$82:$E$106,0) -> 0 | G82: 0 | I82: =ROUND(IF($G$82:$G$106>0,($G$82:$G$106*($H$82:$H$106-1)+$F$82:$F$106), $F$82:$F$106),0) -> 0 | J82: No | L82: =ROUND(IF($J$82:$J$106="no",0,(($K$82:$K$106*'Template Instructions'!$F$20)*(1+'Template Instructions'!$F$16)^'Template Instructions'!$F$20*'Template Instructions'!$F$15)),0) -> 0 | O82: =ROUND($M$82:$M$106*$D$82:$D$106,0)*(1+'Template Instructions'!$F$16)^(N82:N106) -> 0 | R82: =ROUND($L$82:$L$106 +$O$82:$O$106+$Q$82:$Q$106-$P$82:$P$106,0) -> 0 | S82: =ROUND(I82:I106+R82:R106,0) -> 0
A83: Laptops | B83: Laptops | C83: Most laptops will need an upgrade in about 4 years - inflation calculator used | D83: 1200 | E83: 250 | F83: 300000 | G83: 0 | H83: 5 | I83: 300000 | J83: No | L83: 0 | M83: 150 | N83: 4 | O83: 195602.9829 | R83: 195603 | S83: 495603
A84: Smartphones | B84: Smart phones | C84: Android phones for sales and executives (35 employees) | D84: 600 | E84: 35 | F84: 21000 | G84: 0 | H84: 3 | I84: 21000 | J84: No | L84: 0 | M84: 35 | N84: 3 | O84: 22350.97748 | R84: 22351 | S84: 43351
A85: Data plans | B85: Data plan for phones | C85: Verizon: $35/line/mo; $420/line/year | D85: 420 | E85: 35 | F85: 14700 | G85: =F85 -> 14700 | H85: 3 | I85: 44100 | J85: Yes | K85: 14700 | L85: 81549 | M85: 0 | N85: 0 | O85: 0 | R85: 81549 | S85: 125649
F86: 0 | I86: 0 | L86: 0 | O86: 0 | R86: 0 | S86: 0
F87: 0 | I87: 0 | L87: 0 | O87: 0 | R87: 0 | S87: 0
F88: 0 | I88: 0 | L88: 0 | O88: 0 | R88: 0 | S88: 0
F89: 0 | I89: 0 | L89: 0 | O89: 0 | R89: 0 | S89: 0
F90: 0 | I90: 0 | L90: 0 | O90: 0 | R90: 0 | S90: 0
F91: 0 | I91: 0 | L91: 0 | O91: 0 | R91: 0 | S91: 0
F92: 0 | I92: 0 | L92: 0 | O92: 0 | R92: 0 | S92: 0
F93: 0 | I93: 0 | L93: 0 | O93: 0 | R93: 0 | S93: 0
F94: 0 | I94: 0 | L94: 0 | O94: 0 | R94: 0 | S94: 0
F95: 0 | I95: 0 | L95: 0 | O95: 0 | R95: 0 | S95: 0
F96: 0 | I96: 0 | L96: 0 | O96: 0 | R96: 0 | S96: 0
F97: 0 | I97: 0 | L97: 0 | O97: 0 | R97: 0 | S97: 0
F98: 0 | I98: 0 | L98: 0 | O98: 0 | R98: 0 | S98: 0
F99: 0 | I99: 0 | L99: 0 | O99: 0 | R99: 0 | S99: 0
F100: 0 | I100: 0 | L100: 0 | O100: 0 | R100: 0 | S100: 0
F101: 0 | I101: 0 | L101: 0 | O101: 0 | R101: 0 | S101: 0
F102: 0 | I102: 0 | L102: 0 | O102: 0 | R102: 0 | S102: 0
F103: 0 | I103: 0 | L103: 0 | O103: 0 | R103: 0 | S103: 0
F104: 0 | I104: 0 | L104: 0 | O104: 0 | R104: 0 | S104: 0
F105: 0 | I105: 0 | L105: 0 | O105: 0 | R105: 0 | S105: 0
F106: 0 | I106: 0 | L106: 0 | O106: 0 | R106: 0 | S106: 0
A107: Personnel and Support | D107: =SUM($D108:$D119) -> 208000 | F107: =SUM($F108:$F119) -> 268000 | I107: =SUM($I108:$I119) -> 2128000 | L107: =SUM($L108:$L119) -> 1386880 | O107: =SUM($O108:$O119) -> 0 | R107: =SUM($R108:$R119) -> 1386880 | S107: =SUM(S$108:S$119) -> 3514880
F108: =ROUND($D108:$D132*$E108:$E132,0) -> 0 | I108: =ROUND(IF($G108:$G132>0,($G108:$G132*($H108:$H132-1)+$F108:$F132),$F108:$F132),0) -> 0 | L108: =ROUND(IF(J$108:J$132="no",0,((K$108:K$132*'Template Instructions'!F20)*(1+'Template Instructions'!F16)^'Template Instructions'!F20*'Template Instructions'!F15)),0) -> 0 | O108: =ROUND($M108:$M132*$D108:$D132,0)*(1+'Template Instructions'!$F$16)^($N108:$N132) -> 0 | R108: =ROUND($L108:$L132 +$O108:$O132+$Q108:$Q132-$P108:$P132,0) -> 0 | S108: =ROUND($I108:$I132+$R108:$R132,0) -> 0
A109: Salaries | B109: Maintenance/configuration/support | C109: About 1/5 of IT team's time attributed to maintenance/configuration/support. Salaries: IT Director: $180,000 Network Security Officer: $160,000 4 IT Admins: $130,000 Total per year: $860,000/yr *.2 = $172,000/yr (Average past recurring accounts for inflation/raises) | D109: 172000 | E109: 1 | F109: 172000 | G109: 172000 | H109: 10 | I109: 1720000 | J109: Yes | K109: 172000 | L109: 954173 | O109: 0 | R109: 954173 | S109: 2674173
A110: Consulting Services | B110: MSP fees | C110: Reduced: $2,000/month | D110: 24000 | E110: 1 | F110: 24000 | G110: 48000 | H110: 5 | I110: 216000 | J110: Yes | K110: 48000 | L110: 266281 | O110: 0 | R110: 266281 | S110: 482281
A111: Professional Development | B111: Training/continuing education | C111: Reduced: fewer certifications needed. | D111: 12000 | E111: 6 | F111: 72000 | G111: 30000 | H111: 5 | I111: 192000 | J111: Yes | K111: 30000 | L111: 166426 | O111: 0 | R111: 166426 | S111: 358426
A112: Salaries | B112: System downtime | C112: With cloud-based infrastructure, Company ABC isn't responsible for rectifying downtime; their cloud service provider guarantees a 99.99% uptime SLA. | D112: 0 | E112: 0 | F112: 0 | G112: 0 | H112: 0 | I112: 0 | J112: Yes | L112: 0 | O112: 0 | R112: 0 | S112: 0
F113: 0 | I113: 0 | L113: 0 | O113: 0 | R113: 0 | S113: 0
F114: 0 | I114: 0 | L114: 0 | O114: 0 | R114: 0 | S114: 0
F115: 0 | I115: 0 | L115: 0 | O115: 0 | R115: 0 | S115: 0
F116: 0 | I116: 0 | L116: 0 | O116: 0 | R116: 0 | S116: 0
F117: 0 | I117: 0 | L117: 0 | O117: 0 | R117: 0 | S117: 0
F118: 0 | I118: 0 | L118: 0 | O118: 0 | R118: 0 | S118: 0
F119: 0 | I119: 0 | L119: 0 | O119: 0 | R119: 0 | S119: 0
F120: 0 | I120: 0 | L120: 0 | O120: 0 | R120: 0 | S120: 0
F121: 0 | I121: 0 | L121: 0 | O121: 0 | R121: 0 | S121: 0
F122: 0 | I122: 0 | L122: 0 | O122: 0 | R122: 0 | S122: 0
F123: 0 | I123: 0 | L123: 0 | O123: 0 | R123: 0 | S123: 0
F124: 0 | I124: 0 | L124: 0 | O124: 0 | R124: 0 | S124: 0
F125: 0 | I125: 0 | L125: 0 | O125: 0 | R125: 0 | S125: 0
F126: 0 | I126: 0 | L126: 0 | O126: 0 | R126: 0 | S126: 0
F127: 0 | I127: 0 | L127: 0 | O127: 0 | R127: 0 | S127: 0
F128: 0 | I128: 0 | L128: 0 | O128: 0 | R128: 0 | S128: 0
F129: 0 | I129: 0 | L129: 0 | O129: 0 | R129: 0 | S129: 0
F130: 0 | I130: 0 | L130: 0 | O130: 0 | R130: 0 | S130: 0
F131: 0 | I131: 0 | L131: 0 | O131: 0 | R131: 0 | S131: 0
F132: 0 | I132: 0 | L132: 0 | O132: 0 | R132: 0 | S132: 0
A133: Rollout | D133: =SUM($D134:$D146) -> 20189 | F133: =SUM($F134:$F146) -> 13923 | I133: =SUM($I134:$I146) -> 13923 | L133: =SUM($L134:$L146) -> 0 | O133: =SUM($O134:$O146) -> 34014.06288 | R133: =SUM($R134:$R146) -> 34014 | S133: =SUM($S134:$S146) -> 47937
F134: =ROUND($D134:$D158*$E134:$E158,0) -> 0 | I134: =ROUND(IF($G134:$G158>0,($G134:$G158*($H134:$H158-1)+$F134:$F158),$F134:$F158),0) -> 0 | L134: =ROUND(IF($J134:$J158="no",0,(($K134:$K158*'Template Instructions'!$F$20)*(1+'Template Instructions'!$F$16)^'Template Instructions'!$F$20*'Template Instructions'!$F$15)),0) -> 0 | O134: =ROUND($M134:$M158*$D134:$D158,0)*(1+'Template Instructions'!$F$16)^($N134:$N158) -> 0 | R134: =ROUND($L134:$L158+$O134:$O158+$Q134:$Q158-$P134:$P158,0) -> 0 | S134: =ROUND($I134:$I158+$R134:$R158,0) -> 0
A135: Installation & Setup | B135: Solution implementation | C135: Company ABC doesn't need to implement cloud infrastructure. | D135: 0 | E135: 0 | F135: 0 | G135: 0 | H135: 0 | I135: 0 | L135: 0 | M135: 0 | N135: 0 | O135: 0 | R135: 0 | S135: 0
A136: Installation & Setup | B136: Installation - access point upgrades, year 3 | C136: Time and labor for infrastructure upgrades - about 2h per access point = about $126 in labor costs per switch. 12 AP upgrades projected in year 3. See "Ad Hoc Additions" | D136: 126 | E136: 18 | F136: 2268 | G136: 0 | H136: 0 | I136: 2268 | L136: 0 | M136: 12 | N136: 3 | O136: 1609.270379 | R136: 1609 | S136: 3877
A137: Installation & Setup | B137: Installation - set up new employee devices | C137: Projecting 150 new laptops in year 3; 35 new laptops in year 3. About 1h per device setup at $63 per hour. | D137: 63 | E137: 185 | F137: 11655 | G137: 0 | H137: 0 | I137: 11655 | L137: 0 | M137: 185 | N137: 3 | O137: 12404.7925 | R137: 12405 | S137: 24060
A138: Training | B138: New solution training | C138: Company ABC will take advantage of a training package offered by the new vendor to get their people accustomed to the new technology | D138: 20000 | E138: 0 | F138: 0 | G138: 0 | H138: 0 | I138: 0 | J138: No | L138: 0 | M138: 1 | N138: 0 | O138: 20000 | R138: 20000 | S138: 20000
F139: 0 | I139: 0 | L139: 0 | O139: 0 | R139: 0 | S139: 0
F140: 0 | I140: 0 | L140: 0 | O140: 0 | R140: 0 | S140: 0
F141: 0 | I141: 0 | L141: 0 | O141: 0 | R141: 0 | S141: 0
F142: 0 | I142: 0 | L142: 0 | O142: 0 | R142: 0 | S142: 0
F143: 0 | I143: 0 | L143: 0 | O143: 0 | R143: 0 | S143: 0
F144: 0 | I144: 0 | L144: 0 | O144: 0 | R144: 0 | S144: 0
F145: 0 | I145: 0 | L145: 0 | O145: 0 | R145: 0 | S145: 0
F146: 0 | I146: 0 | L146: 0 | O146: 0 | R146: 0 | S146: 0
F147: 0 | I147: 0 | L147: 0 | O147: 0 | R147: 0 | S147: 0
F148: 0 | I148: 0 | L148: 0 | O148: 0 | R148: 0 | S148: 0
F149: 0 | I149: 0 | L149: 0 | O149: 0 | R149: 0 | S149: 0
F150: 0 | I150: 0 | L150: 0 | O150: 0 | R150: 0 | S150: 0
F151: 0 | I151: 0 | L151: 0 | O151: 0 | R151: 0 | S151: 0
F152: 0 | I152: 0 | L152: 0 | O152: 0 | R152: 0 | S152: 0
F153: 0 | I153: 0 | L153: 0 | O153: 0 | R153: 0 | S153: 0
F154: 0 | I154: 0 | L154: 0 | O154: 0 | R154: 0 | S154: 0
F155: 0 | I155: 0 | L155: 0 | O155: 0 | R155: 0 | S155: 0
F156: 0 | I156: 0 | L156: 0 | O156: 0 | R156: 0 | S156: 0
F157: 0 | I157: 0 | L157: 0 | O157: 0 | R157: 0 | S157: 0
F158: 0 | I158: 0 | L158: 0 | O158: 0 | R158: 0 | S158: 0
C159: © 2022 JumpCloud Inc. All rights reserved. JUMPCLOUD EXPRESSLY DISCLAIMS ALL REPRESENTATIONS, WARRANTIES, OR CONDITIONS OF ANY KIND, EXPRESS OR IMPLIED, INCLUDING ANY AND ALL REPRESENTATIONS, WARRANTIES, OR CONDITIONS OF TITLE, NON-INFRINGEMENT, MERCHANTABILITY, FITNESS FOR A PARTICULAR PURPOSE, ACCURACY, CONTINUOUS OR ERROR-FREE OPERATION FROM OR RELATING TO THIS CALCULATOR.

Sheet Option 3
A1: ='Template Instructions'!F19 -> 0 | B1: ='Reference Formulas'!Q10 -> 3093103 | C1: BE ADVISED Shaded cells are meant for your direct input; cells in white contain predetermined calculations and formulas. Tampering or adjusting cells in white can break functionality and usability throughout the calculator. | G1: For Past/YTD | J1: For Future Projections | S1: Lifetime
A2: Item Category | B2: Item | C2: Notes | D2: Cost Per Unit | E2: Quantity | F2: Total Initial Cost | G2: What is the Recurring Cost? | H2: Years Owned / Recurred | I2: YTD TCO | J2: Is this a Future Recurring Cost? | K2: Future Yearly Recurring Cost | L2: Future Cost (Recurring) | M2: Ad Hoc Additions | N2: Year to Add | O2: Future Cost (Ad Hoc) | P2: EOL Cost | Q2: EOL Gain | R2: Projected TCO | S2: Item TCO
A3: Infrastructure Equipment | D3: =SUM($D4:$D15) -> 0 | F3: =SUM(F$4:F$15) -> 0 | I3: =SUM($I4:$I15) -> 0 | L3: =SUM($L4:$L15) -> 0 | O3: =SUM($O4:$O15) -> 0 | R3: =SUM($R4:$R15) -> 0 | S3: =SUM($S4:$S15) -> 0
F4: =ROUND($D4:$D27*$E4:$E27,0) -> 0 | I4: =ROUND(IF($G4:$G28>0,($G4:$G28*($H4:$H28-1)+$F4:$F28),$F4:$F28),0) -> 0 | L4: =ROUND(IF($J4:$J28="no",0,(($K4:$K28*'Template Instructions'!$F$20)*(1+'Template Instructions'!$F$16)^'Template Instructions'!$F$20*'Template Instructions'!$F$15)),0) -> 0 | O4: =ROUND($M4:$M28*$D4:$D28,0)*(1+'Template Instructions'!$F$16)^($N4:$N28) -> 0 | R4: =ROUND($L4:$L28+$O4:$O28+$Q4:$Q28-$P4:$P28,0) -> 0 | S4: =ROUND($I4:$I28+$R4:$R28,0) -> 0
F5: 0 | I5: 0 | L5: 0 | O5: 0 | R5: 0 | S5: 0
F6: 0 | I6: 0 | L6: 0 | O6: 0 | R6: 0 | S6: 0
F7: 0 | I7: 0 | L7: 0 | O7: 0 | R7: 0 | S7: 0
F8: 0 | I8: 0 | L8: 0 | O8: 0 | R8: 0 | S8: 0
F9: 0 | I9: 0 | L9: 0 | O9: 0 | R9: 0 | S9: 0
F10: 0 | I10: 0 | L10: 0 | O10: 0 | R10: 0 | S10: 0
F11: 0 | I11: 0 | L11: 0 | O11: 0 | R11: 0 | S11: 0
F12: 0 | I12: 0 | L12: 0 | O12: 0 | R12: 0 | S12: 0
F13: 0 | I13: 0 | L13: 0 | O13: 0 | R13: 0 | S13: 0
F14: 0 | I14: 0 | L14: 0 | O14: 0 | R14: 0 | S14: 0
F15: 0 | I15: 0 | L15: 0 | O15: 0 | R15: 0 | S15: 0
F16: 0 | I16: 0 | L16: 0 | O16: 0 | R16: 0 | S16: 0
F17: 0 | I17: 0 | L17: 0 | O17: 0 | R17: 0 | S17: 0
F18: 0 | I18: 0 | L18: 0 | O18: 0 | R18: 0 | S18: 0
F19: 0 | I19: 0 | L19: 0 | O19: 0 | R19: 0 | S19: 0
F20: 0 | I20: 0 | L20: 0 | O20: 0 | R20: 0 | S20: 0
F21: 0 | I21: 0 | L21: 0 | O21: 0 | R21: 0 | S21: 0
F22: 0 | I22: 0 | L22: 0 | O22: 0 | R22: 0 | S22: 0
F23: 0 | I23: 0 | L23: 0 | O23: 0 | R23: 0 | S23: 0
F24: 0 | I24: 0 | L24: 0 | O24: 0 | R24: 0 | S24: 0
F25: 0 | I25: 0 | L25: 0 | O25: 0 | R25: 0 | S25: 0
F26: 0 | I26: 0 | L26: 0 | O26: 0 | R26: 0 | S26: 0
F27: 0 | I27: 0 | L27: 0 | O27: 0 | R27: 0 | S27: 0
I28: 0 | L28: 0 | O28: 0 | R28: 0 | S28: 0
A29: Data Center / Hosting Costs | D29: =SUM($D30:$D54) -> 0 | F29: =SUM($F30:$F54) -> 0 | I29: =SUM($I30:$I54) -> 0 | L29: =SUM($L30:$L54) -> 0 | O29: =SUM($O30:$O54) -> 0 | R29: =SUM($R30:$R54) -> 0 | S29: =SUM($S30:$S54) -> 0
F30: =ROUND($D30:$D54*$E30:$E54,0) -> 0 | I30: =ROUND(IF($G30:$G54>0,($G30:$G54*($H30:$H54-1)+$F30:$F54), $F30:$F54),0) -> 0 | L30: =ROUND(IF($J30:$J54="no",0,(($K30:$K54*'Template Instructions'!$F$20)*(1+'Template Instructions'!$F$16)^'Template Instructions'!$F$20*'Template Instructions'!$F$15)),0) -> 0 | O30: =ROUND($M30:$M54*$D30:$D54,0)*(1+'Template Instructions'!$F$16)^($N30:$N54) -> 0 | R30: =ROUND($L30:$L54 +$O30:$O54+$Q30:$Q54-$P30:$P54,0) -> 0 | S30: =ROUND($I30:$I54+$R30:$R54,0) -> 0
F31: 0 | I31: 0 | L31: 0 | O31: 0 | R31: 0 | S31: 0
F32: 0 | I32: 0 | L32: 0 | O32: 0 | R32: 0 | S32: 0
F33: 0 | I33: 0 | L33: 0 | O33: 0 | R33: 0 | S33: 0
F34: 0 | I34: 0 | L34: 0 | O34: 0 | R34: 0 | S34: 0
F35: 0 | I35: 0 | L35: 0 | O35: 0 | R35: 0 | S35: 0
F36: 0 | I36: 0 | L36: 0 | O36: 0 | R36: 0 | S36: 0
F37: 0 | I37: 0 | L37: 0 | O37: 0 | R37: 0 | S37: 0
F38: 0 | I38: 0 | L38: 0 | O38: 0 | R38: 0 | S38: 0
F39: 0 | I39: 0 | L39: 0 | O39: 0 | R39: 0 | S39: 0
F40: 0 | I40: 0 | L40: 0 | O40: 0 | R40: 0 | S40: 0
F41: 0 | I41: 0 | L41: 0 | O41: 0 | R41: 0 | S41: 0
F42: 0 | I42: 0 | L42: 0 | O42: 0 | R42: 0 | S42: 0
F43: 0 | I43: 0 | L43: 0 | O43: 0 | R43: 0 | S43: 0
F44: 0 | I44: 0 | L44: 0 | O44: 0 | R44: 0 | S44: 0
F45: 0 | I45: 0 | L45: 0 | O45: 0 | R45: 0 | S45: 0
F46: 0 | I46: 0 | L46: 0 | O46: 0 | R46: 0 | S46: 0
F47: 0 | I47: 0 | L47: 0 | O47: 0 | R47: 0 | S47: 0
F48: 0 | I48: 0 | L48: 0 | O48: 0 | R48: 0 | S48: 0
F49: 0 | I49: 0 | L49: 0 | O49: 0 | R49: 0 | S49: 0
F50: 0 | I50: 0 | L50: 0 | O50: 0 | R50: 0 | S50: 0
F51: 0 | I51: 0 | L51: 0 | O51: 0 | R51: 0 | S51: 0
F52: 0 | I52: 0 | L52: 0 | O52: 0 | R52: 0 | S52: 0
F53: 0 | I53: 0 | L53: 0 | O53: 0 | R53: 0 | S53: 0
F54: 0 | I54: 0 | L54: 0 | O54: 0 | R54: 0 | S54: 0
A55: Data Center / Hosting Costs | D55: =SUM($D56:$D80) -> 0 | F55: =SUM($F56:$F80) -> 0 | I55: =SUM($I56:$I80) -> 0 | L55: =SUM($L56:$L80) -> 0 | O55: =SUM($O56:$O80) -> 0 | R55: =SUM($R56:$R80) -> 0 | S55: =SUM($S56:$S80) -> 0
F56: =ROUND($D56:$D80*$E56:$E80,0) -> 0 | G56: =F56 -> 0 | I56: =ROUND(IF($G56:$G80>0,($G56:$G80*($H56:$H80-1)+$F56:$F80), $F56:$F80),0) -> 0 | J56: Yes | L56: =ROUND(IF($J56:$J80="no",0,(($K56:$K80*'Template Instructions'!$F$20)*(1+'Template Instructions'!$F$16)^'Template Instructions'!$F$20*'Template Instructions'!$F$15)),0) -> 0 | M56: 0 | N56: 0 | O56: =ROUND($M56:$M80*$D56:$D80,0)*(1+'Template Instructions'!$F$16)^($N56:$N80) -> 0 | R56: =ROUND($L56:$L80 +$O56:$O80+$Q56:$Q80-$P56:$P80,0) -> 0 | S56: =ROUND($I56:$I80+$R56:$R80,0) -> 0
F57: 0 | I57: 0 | L57: 0 | O57: 0 | R57: 0 | S57: 0
F58: 0 | I58: 0 | L58: 0 | O58: 0 | R58: 0 | S58: 0
F59: 0 | I59: 0 | L59: 0 | O59: 0 | R59: 0 | S59: 0
F60: 0 | I60: 0 | L60: 0 | O60: 0 | R60: 0 | S60: 0
F61: 0 | I61: 0 | L61: 0 | O61: 0 | R61: 0 | S61: 0
F62: 0 | I62: 0 | L62: 0 | O62: 0 | R62: 0 | S62: 0
F63: 0 | I63: 0 | L63: 0 | O63: 0 | R63: 0 | S63: 0
F64: 0 | I64: 0 | L64: 0 | O64: 0 | R64: 0 | S64: 0
F65: 0 | I65: 0 | L65: 0 | O65: 0 | R65: 0 | S65: 0
F66: 0 | I66: 0 | L66: 0 | O66: 0 | R66: 0 | S66: 0
F67: 0 | I67: 0 | L67: 0 | O67: 0 | R67: 0 | S67: 0
F68: 0 | I68: 0 | L68: 0 | O68: 0 | R68: 0 | S68: 0
F69: 0 | I69: 0 | L69: 0 | O69: 0 | R69: 0 | S69: 0
F70: 0 | I70: 0 | L70: 0 | O70: 0 | R70: 0 | S70: 0
F71: 0 | I71: 0 | L71: 0 | O71: 0 | R71: 0 | S71: 0
F72: 0 | I72: 0 | L72: 0 | O72: 0 | R72: 0 | S72: 0
F73: 0 | I73: 0 | L73: 0 | O73: 0 | R73: 0 | S73: 0
F74: 0 | I74: 0 | L74: 0 | O74: 0 | R74: 0 | S74: 0
F75: 0 | I75: 0 | L75: 0 | O75: 0 | R75: 0 | S75: 0
F76: 0 | I76: 0 | L76: 0 | O76: 0 | R76: 0 | S76: 0
F77: 0 | I77: 0 | L77: 0 | O77: 0 | R77: 0 | S77: 0
F78: 0 | I78: 0 | L78: 0 | O78: 0 | R78: 0 | S78: 0
F79: 0 | I79: 0 | L79: 0 | O79: 0 | R79: 0 | S79: 0
F80: 0 | I80: 0 | L80: 0 | O80: 0 | R80: 0 | S80: 0
A81: Employee Devices and Hardware | D81: =SUM($D82:$D106) -> 0 | F81: =SUM($F82:$F106) -> 0 | I81: =SUM($I82:$I106) -> 0 | L81: =SUM($L82:$L106) -> 0 | O81: =SUM($O82:$O106) -> 0 | R81: =SUM(R$82:R$106) -> 0 | S81: =SUM($S82:$S106) -> 0
F82: =ROUND($D$82:$D$106*$E$82:$E$106,0) -> 0 | I82: =ROUND(IF($G$82:$G$106>0,($G$82:$G$106*($H$82:$H$106-1)+$F$82:$F$106), $F$82:$F$106),0) -> 0 | L82: =ROUND(IF($J82:$J106="no",0,(($K82:$K106*'Template Instructions'!$F$20)*(1+'Template Instructions'!$F$16)^'Template Instructions'!$F$20*'Template Instructions'!$F$15)),0) -> 0 | O82: =ROUND($M$82:$M$106*$D$82:$D$106,0)*(1+'Template Instructions'!$F$16)^(N82:N106) -> 0 | R82: =ROUND($L$82:$L$106 +$O$82:$O$106+$Q$82:$Q$106-$P$82:$P$106,0) -> 0 | S82: =ROUND(I82:I106+R82:R106,0) -> 0
F83: 0 | I83: 0 | L83: 0 | O83: 0 | R83: 0 | S83: 0
F84: 0 | I84: 0 | L84: 0 | O84: 0 | R84: 0 | S84: 0
F85: 0 | I85: 0 | L85: 0 | O85: 0 | R85: 0 | S85: 0
F86: 0 | I86: 0 | L86: 0 | O86: 0 | R86: 0 | S86: 0
F87: 0 | I87: 0 | L87: 0 | O87: 0 | R87: 0 | S87: 0
F88: 0 | I88: 0 | L88: 0 | O88: 0 | R88: 0 | S88: 0
F89: 0 | I89: 0 | L89: 0 | O89: 0 | R89: 0 | S89: 0
F90: 0 | I90: 0 | L90: 0 | O90: 0 | R90: 0 | S90: 0
F91: 0 | I91: 0 | L91: 0 | O91: 0 | R91: 0 | S91: 0
F92: 0 | I92: 0 | L92: 0 | O92: 0 | R92: 0 | S92: 0
F93: 0 | I93: 0 | L93: 0 | O93: 0 | R93: 0 | S93: 0
F94: 0 | I94: 0 | L94: 0 | O94: 0 | R94: 0 | S94: 0
F95: 0 | I95: 0 | L95: 0 | O95: 0 | R95: 0 | S95: 0
F96: 0 | I96: 0 | L96: 0 | O96: 0 | R96: 0 | S96: 0
F97: 0 | I97: 0 | L97: 0 | O97: 0 | R97: 0 | S97: 0
F98: 0 | I98: 0 | L98: 0 | O98: 0 | R98: 0 | S98: 0
F99: 0 | I99: 0 | L99: 0 | O99: 0 | R99: 0 | S99: 0
F100: 0 | I100: 0 | L100: 0 | O100: 0 | R100: 0 | S100: 0
F101: 0 | I101: 0 | L101: 0 | O101: 0 | R101: 0 | S101: 0
F102: 0 | I102: 0 | L102: 0 | O102: 0 | R102: 0 | S102: 0
F103: 0 | I103: 0 | L103: 0 | O103: 0 | R103: 0 | S103: 0
F104: 0 | I104: 0 | L104: 0 | O104: 0 | R104: 0 | S104: 0
F105: 0 | I105: 0 | L105: 0 | O105: 0 | R105: 0 | S105: 0
F106: 0 | I106: 0 | L106: 0 | O106: 0 | R106: 0 | S106: 0
A107: Personnel and Support | D107: =SUM($D108:$D132) -> 0 | F107: =SUM($F108:$F132) -> 0 | I107: =SUM($I108:$I132) -> 0 | L107: =SUM($L108:$L132) -> 0 | O107: =SUM($O108:$O132) -> 0 | R107: =SUM($R108:$R132) -> 0 | S107: =SUM(S$108:S$132) -> 0
F108: =ROUND($D108:$D132*$E108:$E132,0) -> 0 | I108: =ROUND(IF($G108:$G132>0,($G108:$G132*($H108:$H132-1)+$F108:$F132),$F108:$F132),0) -> 0 | L108: =ROUND(IF($J108:$J132="no",0,(($K108:$K132*'Template Instructions'!$F$20)*(1+'Template Instructions'!$F$16)^'Template Instructions'!$F$20*'Template Instructions'!$F$15)),0) -> 0 | O108: =ROUND($M108:$M132*$D108:$D132,0)*(1+'Template Instructions'!$F$16)^($N108:$N132) -> 0 | R108: =ROUND($L108:$L132 +$O108:$O132+$Q108:$Q132-$P108:$P132,0) -> 0 | S108: =ROUND($I108:$I132+$R108:$R132,0) -> 0
F109: 0 | I109: 0 | L109: 0 | O109: 0 | R109: 0 | S109: 0
F110: 0 | I110: 0 | L110: 0 | O110: 0 | R110: 0 | S110: 0
F111: 0 | I111: 0 | L111: 0 | O111: 0 | R111: 0 | S111: 0
F112: 0 | I112: 0 | L112: 0 | O112: 0 | R112: 0 | S112: 0
F113: 0 | I113: 0 | L113: 0 | O113: 0 | R113: 0 | S113: 0
F114: 0 | I114: 0 | L114: 0 | O114: 0 | R114: 0 | S114: 0
F115: 0 | I115: 0 | L115: 0 | O115: 0 | R115: 0 | S115: 0
F116: 0 | I116: 0 | L116: 0 | O116: 0 | R116: 0 | S116: 0
F117: 0 | I117: 0 | L117: 0 | O117: 0 | R117: 0 | S117: 0
F118: 0 | I118: 0 | L118: 0 | O118: 0 | R118: 0 | S118: 0
F119: 0 | I119: 0 | L119: 0 | O119: 0 | R119: 0 | S119: 0
F120: 0 | I120: 0 | L120: 0 | O120: 0 | R120: 0 | S120: 0
F121: 0 | I121: 0 | L121: 0 | O121: 0 | R121: 0 | S121: 0
F122: 0 | I122: 0 | L122: 0 | O122: 0 | R122: 0 | S122: 0
F123: 0 | I123: 0 | L123: 0 | O123: 0 | R123: 0 | S123: 0
F124: 0 | I124: 0 | L124: 0 | O124: 0 | R124: 0 | S124: 0
F125: 0 | I125: 0 | L125: 0 | O125: 0 | R125: 0 | S125: 0
F126: 0 | I126: 0 | L126: 0 | O126: 0 | R126: 0 | S126: 0
F127: 0 | I127: 0 | L127: 0 | O127: 0 | R127: 0 | S127: 0
F128: 0 | I128: 0 | L128: 0 | O128: 0 | R128: 0 | S128: 0
F129: 0 | I129: 0 | L129: 0 | O129: 0 | R129: 0 | S129: 0
F130: 0 | I130: 0 | L130: 0 | O130: 0 | R130: 0 | S130: 0
F131: 0 | I131: 0 | L131: 0 | O131: 0 | R131: 0 | S131: 0
F132: 0 | I132: 0 | L132: 0 | O132: 0 | R132: 0 | S132: 0
A133: Rollout | D133: =SUM($D134:$D158) -> 0 | F133: =SUM($F134:$F158) -> 0 | I133: =SUM($I134:$I158) -> 0 | L133: =SUM($L134:$L158) -> 0 | O133: =SUM($O134:$O158) -> 0 | R133: =SUM($R134:$R158) -> 0 | S133: =SUM($S134:$S158) -> 0
F134: =ROUND($D134:$D158*$E134:$E158,0) -> 0 | I134: =ROUND(IF($G134:$G158>0,($G134:$G158*($H134:$H158-1)+$F134:$F158),$F134:$F158),0) -> 0 | L134: =ROUND(IF($J134:$J158="no",0,(($K134:$K158*'Template Instructions'!$F$20)*(1+'Template Instructions'!$F$16)^'Template Instructions'!$F$20*'Template Instructions'!$F$15)),0) -> 0 | O134: =ROUND($M134:$M158*$D134:$D158,0)*(1+'Template Instructions'!$F$16)^($N134:$N158) -> 0 | R134: =ROUND($L134:$L158 +$O134:$O158+$Q134:$Q158-$P134:$P158,0) -> 0 | S134: =ROUND($I134:$I158+$R134:$R158,0) -> 0
F135: 0 | I135: 0 | L135: 0 | O135: 0 | R135: 0 | S135: 0
F136: 0 | I136: 0 | L136: 0 | O136: 0 | R136: 0 | S136: 0
F137: 0 | I137: 0 | L137: 0 | O137: 0 | R137: 0 | S137: 0
F138: 0 | I138: 0 | L138: 0 | O138: 0 | R138: 0 | S138: 0
F139: 0 | I139: 0 | L139: 0 | O139: 0 | R139: 0 | S139: 0
F140: 0 | I140: 0 | L140: 0 | O140: 0 | R140: 0 | S140: 0
F141: 0 | I141: 0 | L141: 0 | O141: 0 | R141: 0 | S141: 0
F142: 0 | I142: 0 | L142: 0 | O142: 0 | R142: 0 | S142: 0
F143: 0 | I143: 0 | L143: 0 | O143: 0 | R143: 0 | S143: 0
F144: 0 | I144: 0 | L144: 0 | O144: 0 | R144: 0 | S144: 0
F145: 0 | I145: 0 | L145: 0 | O145: 0 | R145: 0 | S145: 0
F146: 0 | I146: 0 | L146: 0 | O146: 0 | R146: 0 | S146: 0
F147: 0 | I147: 0 | L147: 0 | O147: 0 | R147: 0 | S147: 0
F148: 0 | I148: 0 | L148: 0 | O148: 0 | R148: 0 | S148: 0
F149: 0 | I149: 0 | L149: 0 | O149: 0 | R149: 0 | S149: 0
F150: 0 | I150: 0 | L150: 0 | O150: 0 | R150: 0 | S150: 0
F151: 0 | I151: 0 | L151: 0 | O151: 0 | R151: 0 | S151: 0
F152: 0 | I152: 0 | L152: 0 | O152: 0 | R152: 0 | S152: 0
F153: 0 | I153: 0 | L153: 0 | O153: 0 | R153: 0 | S153: 0
F154: 0 | I154: 0 | L154: 0 | O154: 0 | R154: 0 | S154: 0
F155: 0 | I155: 0 | L155: 0 | O155: 0 | R155: 0 | S155: 0
F156: 0 | I156: 0 | L156: 0 | O156: 0 | R156: 0 | S156: 0
F157: 0 | I157: 0 | L157: 0 | O157: 0 | R157: 0 | S157: 0
F158: 0 | I158: 0 | L158: 0 | O158: 0 | R158: 0 | S158: 0
C159: © 2022 JumpCloud Inc. All rights reserved. JUMPCLOUD EXPRESSLY DISCLAIMS ALL REPRESENTATIONS, WARRANTIES, OR CONDITIONS OF ANY KIND, EXPRESS OR IMPLIED, INCLUDING ANY AND ALL REPRESENTATIONS, WARRANTIES, OR CONDITIONS OF TITLE, NON-INFRINGEMENT, MERCHANTABILITY, FITNESS FOR A PARTICULAR PURPOSE, ACCURACY, CONTINUOUS OR ERROR-FREE OPERATION FROM OR RELATING TO THIS CALCULATOR.

Sheet Executive Dashboard | Lifetime
B1: Total Cost of Ownership Analysis | Executive Summary
B3: ='Reference Formulas'!Q26 -> Lifetime Total Cost of Ownership Comparison: Existing Infrastructure vs Cloud Alternative
B4: Lifetime TCO includes both YTD and future costs. It reflects all the past and future expenses associated with a given solution over a period of time.
D8: Overall Total Cost of Ownership | L8: ='Reference Formulas'!A6 -> Infrastructure Equipment | Y8: ='Reference Formulas'!A8 -> Software and Applications | AL8: ='Reference Formulas'!$A$10 -> Personnel and Support
P11: ='Reference Formulas'!$C$6 -> Existing Infrastructure | Q11: ='Reference Formulas'!$C$7 -> Cloud Alternative | R11: ='Reference Formulas'!$C$8 -> 0 | S11: Cost Compare | AC11: ='Reference Formulas'!$C$6 -> Existing Infrastructure | AD11: ='Reference Formulas'!$C$7 -> Cloud Alternative | AE11: ='Reference Formulas'!$C$8 -> 0 | AF11: Cost Compare | AP11: ='Reference Formulas'!$C$6 -> Existing Infrastructure | AQ11: ='Reference Formulas'!$C$7 -> Cloud Alternative | AR11: ='Reference Formulas'!$C$8 -> 0 | AS11: Cost Compare
O12: ='Reference Formulas'!$Y$6 -> Servers | P12: ='Reference Formulas'!$Z6 -> 115225 | Q12: ='Reference Formulas'!$AA6 -> 0 | R12: ='Reference Formulas'!$AB6 -> 0 | AB12: ='Reference Formulas'!$Y$15 -> IT Solutions | AC12: ='Reference Formulas'!$Z15 -> 358996 | AD12: ='Reference Formulas'!$AA15 -> 45000 | AE12: ='Reference Formulas'!$AB6 -> 0 | AO12: ='Reference Formulas'!$Y$24 -> Salaries | AP12: ='Reference Formulas'!$Z24 -> 6747623 | AQ12: ='Reference Formulas'!$AA24 -> 2674173 | AR12: ='Reference Formulas'!$AB24 -> 0
O13: ='Reference Formulas'!$Y$7 -> Networking Equipment | P13: ='Reference Formulas'!$Z7 -> 188337 | Q13: ='Reference Formulas'!$AA7 -> 73202 | R13: ='Reference Formulas'!$AB7 -> 0 | AB13: ='Reference Formulas'!$Y$16 -> SaaS Solutions | AC13: ='Reference Formulas'!$Z16 -> 12471 | AD13: ='Reference Formulas'!$AA16 -> 728349 | AE13: ='Reference Formulas'!$AB7 -> 0 | AO13: ='Reference Formulas'!$Y$25 -> Consulting Services | AP13: ='Reference Formulas'!$Z25 -> 506281 | AQ13: ='Reference Formulas'!$AA25 -> 482281 | AR13: ='Reference Formulas'!$AB25 -> 0
O14: ='Reference Formulas'!$Y$8 -> Software and Licensing | P14: ='Reference Formulas'!$Z8 -> 128680 | Q14: ='Reference Formulas'!$AA8 -> 0 | R14: ='Reference Formulas'!$AB8 -> 0 | AB14: ='Reference Formulas'!$Y$17 -> Business Software | AC14: ='Reference Formulas'!$Z17 -> 2208124 | AD14: ='Reference Formulas'!$AA17 -> 455467 | AE14: ='Reference Formulas'!$AB8 -> 0 | AO14: ='Reference Formulas'!$Y$26 -> Professional Development | AP14: ='Reference Formulas'!$Z26 -> 655475 | AQ14: ='Reference Formulas'!$AA26 -> 358426 | AR14: ='Reference Formulas'!$AB26 -> 0
O15: ='Reference Formulas'!$Y$9 -> Misc. Infrastructure | P15: ='Reference Formulas'!$Z9 -> 0 | Q15: ='Reference Formulas'!$AA9 -> 0 | R15: ='Reference Formulas'!$AB9 -> 0 | AB15: ='Reference Formulas'!$Y$18 -> Misc. Applications | AC15: ='Reference Formulas'!$Z18 -> 0 | AD15: ='Reference Formulas'!$AA18 -> 0 | AE15: ='Reference Formulas'!$AB9 -> 0 | AO15: ='Reference Formulas'!$Y$27 -> Misc. Personnel | AP15: ='Reference Formulas'!$Z27 -> 0 | AQ15: ='Reference Formulas'!$AA27 -> 0 | AR15: ='Reference Formulas'!$AB27 -> 0
L16: ='Reference Formulas'!E$6 -> 432242 | M16: ='Reference Formulas'!F$6 -> 73202 | N16: ='Reference Formulas'!G$6 -> 0 | Y16: ='Reference Formulas'!E$8 -> 2579591 | Z16: ='Reference Formulas'!F$8 -> 1228816 | AA16: ='Reference Formulas'!G$8 -> 0 | AL16: ='Reference Formulas'!E$10 -> 7909379 | AM16: ='Reference Formulas'!F$10 -> 3514880 | AN16: ='Reference Formulas'!G$10 -> 0
L17: ='Reference Formulas'!$C$6 -> Existing Infrastructure | M17: ='Reference Formulas'!$C$7 -> Cloud Alternative | N17: ='Reference Formulas'!$C$8 -> 0 | O17: Aside from networking equipment, this category typically applies only if you have on-premise infrastructure, whether you host it at your location, in a colocation center, or in a data center. | Y17: ='Reference Formulas'!$C$6 -> Existing Infrastructure | Z17: ='Reference Formulas'!$C$7 -> Cloud Alternative | AA17: ='Reference Formulas'!$C$8 -> 0 | AB17: This category tends to be extensive, and it varies significantly from company to company. It is meant to address the variety of software solutions that IT uses for their work, as well as any software solutions IT manages and/or pays for. | AL17: ='Reference Formulas'!$C$6 -> Existing Infrastructure | AM17: ='Reference Formulas'!$C$7 -> Cloud Alternative | AN17: ='Reference Formulas'!$C$8 -> 0 | AO17: Typically, these are the labor costs associated with configuring, supporting, and managing the item under assessment rather than the costs associated with more generalized day-to-day activities and job function.
L19: ='Reference Formulas'!$A$7 -> Data Center and Hosting Costs | Y19: ='Reference Formulas'!$A$9 -> Employee Devices and Hardware | AL19: ='Reference Formulas'!$A$11 -> Rollout
P22: ='Reference Formulas'!$C$6 -> Existing Infrastructure | Q22: ='Reference Formulas'!$C$7 -> Cloud Alternative | R22: ='Reference Formulas'!$C$8 -> 0 | S22: Cost Compare | AC22: ='Reference Formulas'!$C$6 -> Existing Infrastructure | AD22: ='Reference Formulas'!$C$7 -> Cloud Alternative | AE22: ='Reference Formulas'!$C$8 -> 0 | AF22: Cost Compare | AP22: ='Reference Formulas'!$C$6 -> Existing Infrastructure | AQ22: ='Reference Formulas'!$C$7 -> Cloud Alternative | AR22: ='Reference Formulas'!$C$8 -> 0 | AS22: Cost Compare
O23: ='Reference Formulas'!$Y$10 -> Rent/Mortgage | P23: ='Reference Formulas'!$Z10 -> 186570 | Q23: ='Reference Formulas'!$AA10 -> 0 | R23: ='Reference Formulas'!$AB10 -> 0 | AB23: ='Reference Formulas'!$Y$19 -> Laptops | AC23: ='Reference Formulas'!$Z19 -> 491580 | AD23: ='Reference Formulas'!$AA19 -> 495603 | AE23: ='Reference Formulas'!$AB19 -> 0 | AO23: ='Reference Formulas'!$Y$28 -> Installation & Setup | AP23: ='Reference Formulas'!$Z28 -> 38262 | AQ23: ='Reference Formulas'!$AA28 -> 27937 | AR23: ='Reference Formulas'!$AB28 -> 0
O24: ='Reference Formulas'!$Y$11 -> Insurance | P24: ='Reference Formulas'!$Z11 -> 8936 | Q24: ='Reference Formulas'!$AA11 -> 0 | R24: ='Reference Formulas'!$AB11 -> 0 | AB24: ='Reference Formulas'!$Y$20 -> Smartphones | AC24: ='Reference Formulas'!$Z20 -> 43351 | AD24: ='Reference Formulas'!$AA20 -> 43351 | AE24: ='Reference Formulas'!$AB20 -> 0 | AO24: ='Reference Formulas'!$Y$29 -> Professional Services | AP24: ='Reference Formulas'!$Z29 -> 0 | AQ24: ='Reference Formulas'!$AA29 -> 0 | AR24: ='Reference Formulas'!$AB29 -> 0
O25: ='Reference Formulas'!$Y$12 -> Utilities | P25: ='Reference Formulas'!$Z12 -> 658510 | Q25: ='Reference Formulas'!$AA12 -> 0 | R25: ='Reference Formulas'!$AB12 -> 0 | AB25: ='Reference Formulas'!$Y$21 -> Data plans | AC25: ='Reference Formulas'!$Z21 -> 125649 | AD25: ='Reference Formulas'!$AA21 -> 125649 | AE25: ='Reference Formulas'!$AB21 -> 0 | AO25: ='Reference Formulas'!$Y$30 -> Training | AP25: ='Reference Formulas'!$Z30 -> 0 | AQ25: ='Reference Formulas'!$AA30 -> 20000 | AR25: ='Reference Formulas'!$AB30 -> 0
O26: ='Reference Formulas'!$Y$13 -> Security | P26: ='Reference Formulas'!$Z13 -> 11321 | Q26: ='Reference Formulas'!$AA13 -> 0 | R26: ='Reference Formulas'!$AB13 -> 0 | AB26: ='Reference Formulas'!$Y$22 -> Peripherals | AC26: ='Reference Formulas'!$Z22 -> 0 | AD26: ='Reference Formulas'!$AA22 -> 0 | AE26: ='Reference Formulas'!$AB22 -> 0 | AO26: ='Reference Formulas'!$Y$31 -> Misc. Rollout | AP26: ='Reference Formulas'!$Z31 -> 0 | AQ26: ='Reference Formulas'!$AA31 -> 0 | AR26: ='Reference Formulas'!$AB31 -> 0
O27: ='Reference Formulas'!$Y$14 -> Misc. Data Center | P27: ='Reference Formulas'!$Z14 -> 0 | Q27: ='Reference Formulas'!$AA14 -> 0 | R27: ='Reference Formulas'!$AB14 -> 0 | AB27: ='Reference Formulas'!$Y$23 -> Misc. Hardware | AC27: ='Reference Formulas'!$Z23 -> 0 | AD27: ='Reference Formulas'!$AA23 -> 0 | AE27: ='Reference Formulas'!$AB23 -> 0 | AL27: ='Reference Formulas'!E$11 -> 38262 | AM27: ='Reference Formulas'!F$11 -> 47937 | AN27: ='Reference Formulas'!G$11 -> 0
D28: ='Reference Formulas'!$Q6 -> 12485391 | E28: ='Reference Formulas'!$Q7 -> 5529438 | F28: ='Reference Formulas'!$Q8 -> 0 | L28: ='Reference Formulas'!E$7 -> 865337 | M28: ='Reference Formulas'!F$7 -> 0 | N28: ='Reference Formulas'!G$7 -> 0 | Y28: ='Reference Formulas'!E$9 -> 660580 | Z28: ='Reference Formulas'!F$9 -> 664603 | AA28: ='Reference Formulas'!G$9 -> 0 | AL28: ='Reference Formulas'!$C$6 -> Existing Infrastructure | AM28: ='Reference Formulas'!$C$7 -> Cloud Alternative | AN28: ='Reference Formulas'!$C$8 -> 0 | AO28: Introducing a new tool or stack requires time and money for implementation and configuration, as well as training for those who will use it on an ongoing basis.
D29: ='Reference Formulas'!$C$6 -> Existing Infrastructure | E29: ='Reference Formulas'!$C$7 -> Cloud Alternative | F29: ='Reference Formulas'!$C$8 -> 0 | L29: ='Reference Formulas'!$C$6 -> Existing Infrastructure | M29: ='Reference Formulas'!$C$7 -> Cloud Alternative | N29: ='Reference Formulas'!$C$8 -> 0 | O29: Data center and hosting costs also mainly apply to companies with on-premise infrastructure. This category includes all the costs of housing, powering, and physically securing infrastructure equipment. | Y29: ='Reference Formulas'!$C$6 -> Existing Infrastructure | Z29: ='Reference Formulas'!$C$7 -> Cloud Alternative | AA29: ='Reference Formulas'!$C$8 -> 0 | AB29: Any physical hardware and associated connectivity plans purchased by your company and issued to employees falls under this category.
A34: © 2022 JumpCloud Inc. All rights reserved. JUMPCLOUD EXPRESSLY DISCLAIMS ALL REPRESENTATIONS, WARRANTIES, OR CONDITIONS OF ANY KIND, EXPRESS OR IMPLIED, INCLUDING ANY AND ALL REPRESENTATIONS, WARRANTIES, OR CONDITIONS OF TITLE, NON-INFRINGEMENT, MERCHANTABILITY, FITNESS FOR A PARTICULAR PURPOSE, ACCURACY, CONTINUOUS OR ERROR-FREE OPERATION FROM OR RELATING TO THIS CALCULATOR.

Sheet Executive Dashboard | Projected
B1: Total Cost of Ownership Comparison | Executive Summary
B3: ='Reference Formulas'!Q27 -> Projected Total Cost of Ownership Comparison: Existing Infrastructure vs Cloud Alternative
B4: Future projection costs estimate how much a solution will cost within a given time period that you've chosen. Future costs are ideal for proposed solutions, because they do not have associated past costs.
D8: Overall Total Cost of Ownership | L8: ='Reference Formulas'!A6 -> Infrastructure Equipment | Y8: ='Reference Formulas'!A8 -> Software and Applications | AL8: ='Reference Formulas'!A10 -> Personnel and Support
P11: ='Reference Formulas'!$C$6 -> Existing Infrastructure | Q11: ='Reference Formulas'!$C$7 -> Cloud Alternative | R11: ='Reference Formulas'!$C$8 -> 0 | S11: Cost Compare | AC11: ='Reference Formulas'!$C$6 -> Existing Infrastructure | AD11: ='Reference Formulas'!$C$7 -> Cloud Alternative | AE11: ='Reference Formulas'!$C$8 -> 0 | AF11: Cost Compare | AP11: ='Reference Formulas'!$C$6 -> Existing Infrastructure | AQ11: ='Reference Formulas'!$C$7 -> Cloud Alternative | AR11: ='Reference Formulas'!$C$8 -> 0 | AS11: Cost Compare
O12: ='Reference Formulas'!$Y$6 -> Servers | P12: ='Reference Formulas'!$AC6 -> 55475 | Q12: ='Reference Formulas'!$AD6 -> 0 | R12: ='Reference Formulas'!$AE6 -> 0 | AB12: ='Reference Formulas'!$Y$15 -> IT Solutions | AC12: ='Reference Formulas'!$AC15 -> 232996 | AD12: ='Reference Formulas'!$AD15 -> 0 | AE12: ='Reference Formulas'!$AE15 -> 0 | AO12: ='Reference Formulas'!$Y$24 -> Salaries | AP12: ='Reference Formulas'!$AC24 -> 2407623 | AQ12: ='Reference Formulas'!$AD24 -> 954173 | AR12: ='Reference Formulas'!$AE24 -> 0
O13: ='Reference Formulas'!$Y$7 -> Networking Equipment | P13: ='Reference Formulas'!$AC7 -> 70737 | Q13: ='Reference Formulas'!$AD7 -> 27602 | R13: ='Reference Formulas'!$AE7 -> 0 | AB13: ='Reference Formulas'!$Y$16 -> SaaS Solutions | AC13: ='Reference Formulas'!$AC16 -> 5991 | AD13: ='Reference Formulas'!$AD16 -> 449349 | AE13: ='Reference Formulas'!$AE16 -> 0 | AO13: ='Reference Formulas'!$Y$25 -> Consulting Services | AP13: ='Reference Formulas'!$AC25 -> 266281 | AQ13: ='Reference Formulas'!$AD25 -> 266281 | AR13: ='Reference Formulas'!$AE25 -> 0
O14: ='Reference Formulas'!$Y$8 -> Software and Licensing | P14: ='Reference Formulas'!$AC8 -> 67680 | Q14: ='Reference Formulas'!$AD8 -> 0 | R14: ='Reference Formulas'!$AE8 -> 0 | AB14: ='Reference Formulas'!$Y$17 -> Business Software | AC14: ='Reference Formulas'!$AC17 -> 1065124 | AD14: ='Reference Formulas'!$AD17 -> 238987 | AE14: ='Reference Formulas'!$AE17 -> 0 | AO14: ='Reference Formulas'!$Y$26 -> Professional Development | AP14: ='Reference Formulas'!$AC26 -> 55475 | AQ14: ='Reference Formulas'!$AD26 -> 166426 | AR14: ='Reference Formulas'!$AE26 -> 0
O15: ='Reference Formulas'!$Y$9 -> Misc. Infrastructure | P15: ='Reference Formulas'!$AC9 -> 0 | Q15: ='Reference Formulas'!$AD9 -> 0 | R15: ='Reference Formulas'!$AE9 -> 0 | AB15: ='Reference Formulas'!$Y$18 -> Misc. Applications | AC15: ='Reference Formulas'!$AC18 -> 0 | AD15: ='Reference Formulas'!$AD18 -> 0 | AE15: ='Reference Formulas'!$AE18 -> 0 | AO15: ='Reference Formulas'!$Y$27 -> Misc. Personnel | AP15: ='Reference Formulas'!$AC27 -> 0 | AQ15: ='Reference Formulas'!$AD27 -> 0 | AR15: ='Reference Formulas'!$AE27 -> 0
L16: ='Reference Formulas'!M$6 -> 193892 | M16: ='Reference Formulas'!N$6 -> 27602 | N16: ='Reference Formulas'!O$6 -> 0 | Y16: ='Reference Formulas'!M$8 -> 1304111 | Z16: ='Reference Formulas'!N$8 -> 688336 | AA16: ='Reference Formulas'!O$8 -> 0 | AL16: ='Reference Formulas'!M$10 -> 2729379 | AM16: ='Reference Formulas'!N$10 -> 1386880 | AN16: ='Reference Formulas'!O$10 -> 0
L17: ='Reference Formulas'!$C$6 -> Existing Infrastructure | M17: ='Reference Formulas'!$C$7 -> Cloud Alternative | N17: ='Reference Formulas'!$C$8 -> 0 | O17: Aside from networking equipment, this category typically applies only if you have on-premise infrastructure, whether you host it at your location, in a colocation center, or in a data center. | Y17: ='Reference Formulas'!$C$6 -> Existing Infrastructure | Z17: ='Reference Formulas'!$C$7 -> Cloud Alternative | AA17: ='Reference Formulas'!$C$8 -> 0 | AB17: This category tends to be extensive, and it varies significantly from company to company. It is meant to address the variety of software solutions that IT uses for their work, as well as any software solutions IT manages and/or pays for. | AL17: ='Reference Formulas'!$C$6 -> Existing Infrastructure | AM17: ='Reference Formulas'!$C$7 -> Cloud Alternative | AN17: ='Reference Formulas'!$C$8 -> 0 | AO17: Typically, these are the labor costs associated with configuring, supporting, and managing the item under assessment rather than the costs associated with more generalized day-to-day activities and job function.
L19: ='Reference Formulas'!A7 -> Data Center and Hosting Costs | Y19: ='Reference Formulas'!A9 -> Employee Devices and Hardware | AL19: ='Reference Formulas'!A11 -> Rollout
P22: ='Reference Formulas'!$C$6 -> Existing Infrastructure | Q22: ='Reference Formulas'!$C$7 -> Cloud Alternative | R22: ='Reference Formulas'!$C$8 -> 0 | S22: Cost Compare | AC22: ='Reference Formulas'!$C$6 -> Existing Infrastructure | AD22: ='Reference Formulas'!$C$7 -> Cloud Alternative | AE22: ='Reference Formulas'!$C$8 -> 0 | AF22: Cost Compare | AP22: ='Reference Formulas'!$C$6 -> Existing Infrastructure | AQ22: ='Reference Formulas'!$C$7 -> Cloud Alternative | AR22: ='Reference Formulas'!$C$8 -> 0 | AS22: Cost Compare
O23: ='Reference Formulas'!$Y$10 -> Rent/Mortgage | P23: ='Reference Formulas'!$AC10 -> 66570 | Q23: ='Reference Formulas'!$AD10 -> 0 | R23: ='Reference Formulas'!$AE10 -> 0 | AB23: ='Reference Formulas'!$Y$19 -> Laptops | AC23: ='Reference Formulas'!$AC19 -> 191580 | AD23: ='Reference Formulas'!$AD19 -> 195603 | AE23: ='Reference Formulas'!$AE19 -> 0 | AO23: ='Reference Formulas'!$Y$28 -> Installation & Setup | AP23: ='Reference Formulas'!$AC28 -> 19047 | AQ23: ='Reference Formulas'!$AD28 -> 14014 | AR23: ='Reference Formulas'!$AE28 -> 0
O24: ='Reference Formulas'!$Y$11 -> Insurance | P24: ='Reference Formulas'!$AC11 -> 2996 | Q24: ='Reference Formulas'!$AD11 -> 0 | R24: ='Reference Formulas'!$AE11 -> 0 | AB24: ='Reference Formulas'!$Y$20 -> Smartphones | AC24: ='Reference Formulas'!$AC20 -> 22351 | AD24: ='Reference Formulas'!$AD20 -> 22351 | AE24: ='Reference Formulas'!$AE20 -> 0 | AO24: ='Reference Formulas'!$Y$29 -> Professional Services | AP24: ='Reference Formulas'!$AC29 -> 0 | AQ24: ='Reference Formulas'!$AD29 -> 0 | AR24: ='Reference Formulas'!$AE29 -> 0
O25: ='Reference Formulas'!$Y$12 -> Utilities | P25: ='Reference Formulas'!$AC12 -> 199710 | Q25: ='Reference Formulas'!$AD12 -> 0 | R25: ='Reference Formulas'!$AE12 -> 0 | AB25: ='Reference Formulas'!$Y$21 -> Data plans | AC25: ='Reference Formulas'!$AC21 -> 81549 | AD25: ='Reference Formulas'!$AD21 -> 81549 | AE25: ='Reference Formulas'!$AE21 -> 0 | AO25: ='Reference Formulas'!$Y$30 -> Training | AP25: ='Reference Formulas'!$AC30 -> 0 | AQ25: ='Reference Formulas'!$AD30 -> 20000 | AR25: ='Reference Formulas'!$AE30 -> 0
O26: ='Reference Formulas'!$Y$13 -> Security | P26: ='Reference Formulas'!$AC13 -> 8321 | Q26: ='Reference Formulas'!$AD13 -> 0 | R26: ='Reference Formulas'!$AE13 -> 0 | AB26: ='Reference Formulas'!$Y$22 -> Peripherals | AC26: ='Reference Formulas'!$AC22 -> 0 | AD26: ='Reference Formulas'!$AD22 -> 0 | AE26: ='Reference Formulas'!$AE22 -> 0 | AO26: ='Reference Formulas'!$Y$31 -> Misc. Rollout | AP26: ='Reference Formulas'!$AC31 -> 0 | AQ26: ='Reference Formulas'!$AD31 -> 0 | AR26: ='Reference Formulas'!$AE31 -> 0
O27: ='Reference Formulas'!$Y$14 -> Misc. Data Center | P27: ='Reference Formulas'!$AC14 -> 0 | Q27: ='Reference Formulas'!$AD14 -> 0 | R27: ='Reference Formulas'!$AE14 -> 0 | AB27: ='Reference Formulas'!$Y$23 -> Misc. Hardware | AC27: ='Reference Formulas'!$AC23 -> 0 | AD27: ='Reference Formulas'!$AD23 -> 0 | AE27: ='Reference Formulas'!$AE23 -> 0 | AO27: ='Reference Formulas'!$Y$32 -> 0
D28: ='Reference Formulas'!$Q11 -> 4819506 | E28: ='Reference Formulas'!$Q12 -> 2436335 | F28: ='Reference Formulas'!$Q13 -> 0 | L28: ='Reference Formulas'!M$7 -> 277597 | M28: ='Reference Formulas'!N$7 -> 0 | N28: ='Reference Formulas'!O$7 -> 0 | Y28: ='Reference Formulas'!M$9 -> 295480 | Z28: ='Reference Formulas'!N$9 -> 299503 | AA28: ='Reference Formulas'!O$9 -> 0 | AL28: ='Reference Formulas'!M$11 -> 19047 | AM28: ='Reference Formulas'!N$11 -> 34014 | AN28: ='Reference Formulas'!O$11 -> 0 | AO28: Introducing a new tool or stack requires time and money for implementation and configuration, as well as training for those who will use it on an ongoing basis.
D29: ='Reference Formulas'!$C$6 -> Existing Infrastructure | E29: ='Reference Formulas'!$C$7 -> Cloud Alternative | F29: ='Reference Formulas'!$C$8 -> 0 | L29: ='Reference Formulas'!$C$6 -> Existing Infrastructure | M29: ='Reference Formulas'!$C$7 -> Cloud Alternative | N29: ='Reference Formulas'!$C$8 -> 0 | O29: Data center and hosting costs also mainly apply to companies with on-premise infrastructure. This category includes all the costs of housing, powering, and physically securing infrastructure equipment. | Y29: ='Reference Formulas'!$C$6 -> Existing Infrastructure | Z29: ='Reference Formulas'!$C$7 -> Cloud Alternative | AA29: ='Reference Formulas'!$C$8 -> 0 | AB29: Any physical hardware and associated connectivity plans purchased by your company and issued to employees falls under this category. | AL29: ='Reference Formulas'!$C$6 -> Existing Infrastructure | AM29: ='Reference Formulas'!$C$7 -> Cloud Alternative | AN29: ='Reference Formulas'!$C$8 -> 0
A34: © 2022 JumpCloud Inc. All rights reserved. JUMPCLOUD EXPRESSLY DISCLAIMS ALL REPRESENTATIONS, WARRANTIES, OR CONDITIONS OF ANY KIND, EXPRESS OR IMPLIED, INCLUDING ANY AND ALL REPRESENTATIONS, WARRANTIES, OR CONDITIONS OF TITLE, NON-INFRINGEMENT, MERCHANTABILITY, FITNESS FOR A PARTICULAR PURPOSE, ACCURACY, CONTINUOUS OR ERROR-FREE OPERATION FROM OR RELATING TO THIS CALCULATOR.

Sheet Executive Dashboard | Current
A1: Total Cost of Ownership Analysis | Executive Summary
B3: =CONCATENATE("Year-to-Date (YTD) Total Cost of Ownership Overview: " & 'Reference Formulas'!$C$6) -> Year-to-Date (YTD) Total Cost of Ownership Overview: Existing Infrastructure
B4: Year-to-date, or current, TCO reflects the costs you've already paid for an existing solution. This analysis is meant to organize and review the total cost of ownership of your existing solution to better understand where effciencies may be gained.
C7: ='Reference Formulas'!Q24 -> Total Cost of Ownership: Existing Infrastructure
C9: ='Reference Formulas'!Q9 -> 7665885 | I9: Category Breakdown
C11: =IFERROR(__xludf.DUMMYFUNCTION("SPARKLINE('Reference Formulas'!I6:I11,{""charttype"",""column"";""ymin"", 0; ""ymax"",(SUM('Reference Formulas'!I6:I11)*0.05);""firstcolor"",""#41C8C3""})"),"") ->  | I11: ='Reference Formulas'!A6 -> Infrastructure Equipment | J11: ='Reference Formulas'!I6 -> 238350 | K11: =IFERROR(__xludf.DUMMYFUNCTION("SPARKLINE(J11,{""charttype"",""bar"";""max"",(MAX(J11:J16)*1.05);""color1"",""#41C8C3""})"),"") -> 
I12: ='Reference Formulas'!A7 -> Data Center and Hosting Costs | J12: ='Reference Formulas'!I7 -> 587740 | K12: =IFERROR(__xludf.DUMMYFUNCTION("SPARKLINE(J12,{""charttype"",""bar"";""max"",(MAX(J11:J16)*1.05);""color1"",""#41C8C3""})"),"") -> 
I13: ='Reference Formulas'!A8 -> Software and Applications | J13: ='Reference Formulas'!I8 -> 1275480 | K13: =IFERROR(__xludf.DUMMYFUNCTION("SPARKLINE(J13,{""charttype"",""bar"";""max"",(MAX(J11:J16)*1.05);""color1"",""#41C8C3""})"),"") -> 
I14: ='Reference Formulas'!A9 -> Employee Devices and Hardware | J14: ='Reference Formulas'!I9 -> 365100 | K14: =IFERROR(__xludf.DUMMYFUNCTION("SPARKLINE(J14,{""charttype"",""bar"";""max"",(MAX(J11:J16)*1.05);""color1"",""#41C8C3""})"),"") -> 
I15: ='Reference Formulas'!A10 -> Personnel and Support | J15: ='Reference Formulas'!I10 -> 5180000 | K15: =IFERROR(__xludf.DUMMYFUNCTION("SPARKLINE(J15,{""charttype"",""bar"";""max"",(MAX(J11:J16)*1.05);""color1"",""#41C8C3""})"),"") -> 
I16: ='Reference Formulas'!A11 -> Rollout | J16: ='Reference Formulas'!I11 -> 19215 | K16: =IFERROR(__xludf.DUMMYFUNCTION("SPARKLINE(J16,{""charttype"",""bar"";""max"",(MAX(J11:J16)*1.05);""color1"",""#41C8C3""})"),"") -> 
C31: ='Reference Formulas'!$C$6 -> Existing Infrastructure
C32: ='Reference Formulas'!Q6 -> 12485391
A37: © 2022 JumpCloud Inc. All rights reserved. JUMPCLOUD EXPRESSLY DISCLAIMS ALL REPRESENTATIONS, WARRANTIES, OR CONDITIONS OF ANY KIND, EXPRESS OR IMPLIED, INCLUDING ANY AND ALL REPRESENTATIONS, WARRANTIES, OR CONDITIONS OF TITLE, NON-INFRINGEMENT, MERCHANTABILITY, FITNESS FOR A PARTICULAR PURPOSE, ACCURACY, CONTINUOUS OR ERROR-FREE OPERATION FROM OR RELATING TO THIS CALCULATOR.

Sheet Formulas
A1: Compound Inflation Calculator (In)
A2: Formula | B2: FV = PV(1+r)^n
A3: # years (n) | B3: 5
A4: rate of inflation (r) | B4: 0.021 | C4: (The average inflation in the U.S. over the last 10 years was 2.1%, but is currently higher.)
A5: Present value (PV) | B5: 6000
A6: Future Value (FV) = | B6: =B5*(1+B4)^B3 -> 6657.021519
A8: To calculate compound raises, change the rate of inflation to the projected salary raise per year.
A10: Labor Costs per Worker (L)
A11: Formula | B11: L = h*t
A12: Salary | B12: 130000
A13: Hourly wage (h) | B13: =B12/2080 -> 62.5
A14: Time spent on task per month | B14: 10
A15: Time spent on task per year (t) | B15: =B14*12 -> 120
A16: Labor costs for task (L) = | B16: =B15*B13 -> 7500
A18: Convert Time to Years (T)
A19: Original Unit: | C19: Available units per year:
A20: hours per day | B20: 2 | C20: =B20*365 -> 730 | D20: Use for non-labor
A21: hours per working day (standard US) | B21: 2 | C21: =B21*260 -> 520 | D21: Use for labor
A22: hours per week | C22: =B22*52 -> 0 | D22: Use for non-labor
A23: hours per working week (standard US) | C23: =B23*48 -> 0 | D23: Use for labor
A24: Hours per month | B24: 10 | C24: =B24*12 -> 120 | D24: Use for non-labor
A25: Hours per working month | B25: 10 | C25: =B25*11 -> 110 | D25: Use for labor
A27: Growth (G)
A28: Final number | B28: =B29*(1+(B31*B32)) -> 52
A29: Current number | B29: 40
A30: Total growth rate | B30: 0.3
A31: Growth rate per year | B31: =B30/B32 -> 0.1
A32: # years | B32: 3
A34: © 2022 JumpCloud Inc. All rights reserved. JUMPCLOUD EXPRESSLY DISCLAIMS ALL REPRESENTATIONS, WARRANTIES, OR CONDITIONS OF ANY KIND, EXPRESS OR IMPLIED, INCLUDING ANY AND ALL REPRESENTATIONS, WARRANTIES, OR CONDITIONS OF TITLE, NON-INFRINGEMENT, MERCHANTABILITY, FITNESS FOR A PARTICULAR PURPOSE, ACCURACY, CONTINUOUS OR ERROR-FREE OPERATION FROM OR RELATING TO THIS CALCULATOR.

Sheet Reference Formulas (hidden)
A1: This is the master reference sheet, to be used by dashboards throughout the calculator. See color coding table to determine references and in-sheet calculations. DO NOT MOVE ANY PRE-EXISTING VALUES UNLESS YOU PLAN TO ADJUST THE REFERENCES. Other tabs will use absolute references to this sheet. As needed add values below (if adding to a list) or create a new list to the right. © 2022 JumpCloud Inc. All rights reserved. JUMPCLOUD EXPRESSLY DISCLAIMS ALL REPRESENTATIONS, WARRANTIES, OR CONDITIONS OF ANY KIND, EXPRESS OR IMPLIED, INCLUDING ANY AND ALL REPRESENTATIONS, WARRANTIES, OR CONDITIONS OF TITLE, NON-INFRINGEMENT, MERCHANTABILITY, FITNESS FOR A PARTICULAR PURPOSE, ACCURACY, CONTINUOUS OR ERROR-FREE OPERATION FROM OR RELATING TO THIS CALCULATOR.
A2: Yes | B2: Color Codes: | C2: Reference | D2: In-sheet calculation
A3: No | AA3: Lifetime | AD3: Projected
E4: Option 1 | F4: Option 2 | G4: Option 3 | I4: Option 1 | J4: Option 2 | K4: Option 3 | M4: Option 1 | N4: Option 2 | O4: Option 3 | Z4: Option 1 | AA4: Option 2 | AB4: Option 3
A5: Categories for master template and dashboard summaries | B5: TCO Analysis | Names of things being compared | D5: Lifetime TCO Totals: | E5: =$C$6 -> Existing Infrastructure | F5: =$C$7 -> Cloud Alternative | G5: =$C$8 -> 0 | H5: Past/YTD TCO Totals: | I5: =$C$6 -> Existing Infrastructure | J5: =$C$7 -> Cloud Alternative | K5: =$C$8 -> 0 | L5: Future TCO Totals: | M5: =$C$6 -> Existing Infrastructure | N5: =$C$7 -> Cloud Alternative | O5: =$C$8 -> 0 | P5: TCO Dashboard Calculations | R5: Data Validation for Template Instructions Workplace Environment | S5: Infrastructure Equipment | T5: Data Center and Hosting Costs | U5: Software and Applications | V5: Employee Devices and Hardware | W5: Personnel and Support | X5: Rollout | Y5: SUMIF formulas for subcategories | Lifetime TCO | Z5: =$C$6 -> Existing Infrastructure | AA5: =$C$7 -> Cloud Alternative | AB5: =$C$8 -> 0 | AC5: =$C$6 -> Existing Infrastructure | AD5: =$C$7 -> Cloud Alternative | AE5: =$C$8 -> 0
A6: Infrastructure Equipment | B6: Option 1 | C6: ='Template Instructions'!$F$17 -> Existing Infrastructure | D6: =$A$6 -> Infrastructure Equipment | E6: ='Option 1'!$S$3 -> 432242 | F6: ='Option 2'!$S$3 -> 73202 | G6: ='Option 3'!$S$3 -> 0 | H6: =$A$6 -> Infrastructure Equipment | I6: ='Option 1'!$I$3 -> 238350 | J6: ='Option 2'!$I$3 -> 45600 | K6: ='Option 3'!$I$3 -> 0 | L6: =$A$6 -> Infrastructure Equipment | M6: ='Option 1'!$R$3 -> 193892 | N6: ='Option 2'!$R$3 -> 27602 | O6: ='Option 3'!$R$3 -> 0 | P6: Lifetime | Total Cost Chart | Option 1 | Total Cost Summation | Q6: =SUM($E$6:$E$11) -> 12485391 | R6: Fully Remote | S6: Servers | T6: Rent/Mortgage | U6: IT Solutions | V6: Laptops | W6: Salaries | X6: Installation & Setup | Y6: Servers | Z6: =SUMIF('Option 1'!$A$4:$A$28,$Y$6,'Option 1'!$S$4:$S$28) -> 115225 | AA6: =SUMIF('Option 2'!$A$4:$A$28,$Y$6,'Option 2'!$S$4:$S$28) -> 0 | AB6: =SUMIF('Option 3'!$A$4:$A$15,$Y$6,'Option 3'!$S$4:$S$15) -> 0 | AC6: =SUMIF('Option 1'!$A$4:$A$28,$Y$6,'Option 1'!$R$4:$R$28) -> 55475 | AD6: =SUMIF('Option 2'!$A$4:$A$28,$Y$6,'Option 2'!$R$4:$R$28) -> 0 | AE6: =SUMIF('Option 3'!$A$4:$A$15,$Y$6,'Option 3'!$R$4:$R$15) -> 0
A7: Data Center and Hosting Costs | B7: Option 2 | C7: ='Template Instructions'!$F$18 -> Cloud Alternative | D7: =$A$7 -> Data Center and Hosting Costs | E7: ='Option 1'!$S$29 -> 865337 | F7: ='Option 2'!$S$29 -> 0 | G7: ='Option 3'!$S$29 -> 0 | H7: =$A$7 -> Data Center and Hosting Costs | I7: ='Option 1'!$I$29 -> 587740 | J7: ='Option 2'!$I$29 -> 0 | K7: ='Option 3'!$I$29 -> 0 | L7: =$A$7 -> Data Center and Hosting Costs | M7: ='Option 1'!$R$29 -> 277597 | N7: ='Option 2'!$R$29 -> 0 | O7: ='Option 3'!$R$29 -> 0 | P7: Lifetime | Total Cost Chart | Option 2 | Total Cost Summation | Q7: =SUM($F$6:$F$11) -> 5529438 | R7: Mostly Remote | S7: Networking Equipment | T7: Insurance | U7: SaaS Solutions | V7: Smartphones | W7: Consulting Services | X7: Professional Services | Y7: Networking Equipment | Z7: =SUMIF('Option 1'!$A$4:$A$28,$Y$7,'Option 1'!$S$4:$S$28) -> 188337 | AA7: =SUMIF('Option 2'!$A$4:$A$28,$Y$7,'Option 2'!$S$4:$S$28) -> 73202 | AB7: =SUMIF('Option 3'!$A$4:$A$15,$Y$7,'Option 3'!$S$4:$S$15) -> 0 | AC7: =SUMIF('Option 1'!$A$4:$A$28,$Y$7,'Option 1'!$R$4:$R$28) -> 70737 | AD7: =SUMIF('Option 2'!$A$4:$A$28,$Y$7,'Option 2'!$R$4:$R$28) -> 27602 | AE7: =SUMIF('Option 3'!$A$4:$A$15,$Y$7,'Option 3'!$R$4:$R$15) -> 0
A8: Software and Applications | B8: Option 3 | C8: ='Template Instructions'!$F$19 -> 0 | D8: =$A$8 -> Software and Applications | E8: ='Option 1'!$S$55 -> 2579591 | F8: ='Option 2'!$S$55 -> 1228816 | G8: ='Option 3'!$S$55 -> 0 | H8: =$A$8 -> Software and Applications | I8: ='Option 1'!$I$55 -> 1275480 | J8: ='Option 2'!$I$55 -> 540480 | K8: ='Option 3'!$I$55 -> 0 | L8: =$A$8 -> Software and Applications | M8: ='Option 1'!$R$55 -> 1304111 | N8: ='Option 2'!$R$55 -> 688336 | O8: ='Option 3'!$R$55 -> 0 | P8: Lifetime | Total Cost Chart | Option 3 | Total Cost Summation | Q8: =SUM($G$6:$G$11) -> 0 | R8: Hybrid | S8: Software and Licensing | T8: Utilities | U8: Business Software | V8: Data plans | W8: Professional Development | X8: Training | Y8: Software and Licensing | Z8: =SUMIF('Option 1'!$A$4:$A$28,$Y$8,'Option 1'!$S$4:$S$28) -> 128680 | AA8: =SUMIF('Option 2'!$A$4:$A$28,$Y$8,'Option 2'!$S$4:$S$28) -> 0 | AB8: =SUMIF('Option 3'!$A$4:$A$15,$Y$8,'Option 3'!$S$4:$S$15) -> 0 | AC8: =SUMIF('Option 1'!$A$4:$A$28,$Y$8,'Option 1'!$R$4:$R$28) -> 67680 | AD8: =SUMIF('Option 2'!$A$4:$A$28,$Y$8,'Option 2'!$R$4:$R$28) -> 0 | AE8: =SUMIF('Option 3'!$A$4:$A$15,$Y$8,'Option 3'!$R$4:$R$15) -> 0
A9: Employee Devices and Hardware | D9: =$A$9 -> Employee Devices and Hardware | E9: ='Option 1'!$S$81 -> 660580 | F9: ='Option 2'!$S$81 -> 664603 | G9: ='Option 3'!$S$81 -> 0 | H9: =$A$9 -> Employee Devices and Hardware | I9: ='Option 1'!$I$81 -> 365100 | J9: ='Option 2'!$I$81 -> 365100 | K9: ='Option 3'!$I$81 -> 0 | L9: =$A$9 -> Employee Devices and Hardware | M9: ='Option 1'!$R$81 -> 295480 | N9: ='Option 2'!$R$81 -> 299503 | O9: ='Option 3'!$R$81 -> 0 | P9: Past | Total Cost Chart | Option 1 | Total Cost Summation | Q9: =SUM($I$6:$I$11) -> 7665885 | R9: Mostly In Office | S9: Misc. Infrastructure | T9: Security | U9: Misc. Applications | V9: Peripherals | W9: Misc. Personnel | X9: Misc. Rollout | Y9: Misc. Infrastructure | Z9: =SUMIF('Option 1'!$A$4:$A$28,$Y$9,'Option 1'!$S$4:$S$28) -> 0 | AA9: =SUMIF('Option 2'!$A$4:$A$28,$Y$9,'Option 2'!$S$4:$S$28) -> 0 | AB9: =SUMIF('Option 3'!$A$4:$A$15,$Y$9,'Option 3'!$S$4:$S$15) -> 0 | AC9: =SUMIF('Option 1'!$A$4:$A$28,$Y$9,'Option 1'!$R$4:$R$28) -> 0 | AD9: =SUMIF('Option 2'!$A$4:$A$28,$Y$9,'Option 2'!$R$4:$R$28) -> 0 | AE9: =SUMIF('Option 3'!$A$4:$A$15,$Y$9,'Option 3'!$R$4:$R$15) -> 0
A10: Personnel and Support | D10: =$A$10 -> Personnel and Support | E10: ='Option 1'!$S$107 -> 7909379 | F10: ='Option 2'!$S$107 -> 3514880 | G10: ='Option 3'!$S$107 -> 0 | H10: =$A$10 -> Personnel and Support | I10: ='Option 1'!$I$107 -> 5180000 | J10: ='Option 2'!$I$107 -> 2128000 | K10: ='Option 3'!$I$107 -> 0 | L10: =$A$10 -> Personnel and Support | M10: ='Option 1'!$R$107 -> 2729379 | N10: ='Option 2'!$R$107 -> 1386880 | O10: ='Option 3'!$R$107 -> 0 | P10: Past | Total Cost Chart | Option 2 | Total Cost Summation | Q10: =SUM($J$6:$J$11) -> 3093103 | R10: Fully In Office | T10: Misc. Data Center | V10: Misc. Hardware | Y10: Rent/Mortgage | Z10: =SUMIF('Option 1'!$A$30:$A$54,$Y$10,'Option 1'!$S$30:$S$54) -> 186570 | AA10: =SUMIF('Option 2'!$A$30:$A$41,$Y$10,'Option 2'!$S$30:$S$41) -> 0 | AB10: =SUMIF('Option 3'!$A$30:$A$54,$Y$10,'Option 3'!$S$30:$S$54) -> 0 | AC10: =SUMIF('Option 1'!$A$30:$A$54,$Y$10,'Option 1'!$R$30:$R$54) -> 66570 | AD10: =SUMIF('Option 2'!$A$30:$A$41,$Y$10,'Option 2'!$R$30:$R$41) -> 0 | AE10: =SUMIF('Option 3'!$A$30:$A$54,$Y$10,'Option 3'!$R$30:$R$54) -> 0
A11: Rollout | D11: =$A$11 -> Rollout | E11: ='Option 1'!$S$133 -> 38262 | F11: ='Option 2'!$S$133 -> 47937 | G11: ='Option 3'!$S$133 -> 0 | H11: =$A$11 -> Rollout | I11: ='Option 1'!$I$133 -> 19215 | J11: ='Option 2'!$I$133 -> 13923 | K11: ='Option 3'!$I$133 -> 0 | L11: =$A$11 -> Rollout | M11: ='Option 1'!$R$133 -> 19047 | N11: ='Option 2'!$R$133 -> 34014 | O11: ='Option 3'!$R$133 -> 0 | P11: Future | Total Cost Chart | Option 1 | Total Cost Summation | Q11: =SUM($M$6:$M$11) -> 4819506 | Y11: Insurance | Z11: =SUMIF('Option 1'!$A$30:$A$54,$Y$11,'Option 1'!$S$30:$S$54) -> 8936 | AA11: =SUMIF('Option 2'!$A$30:$A$41,$Y$11,'Option 2'!$S$30:$S$41) -> 0 | AB11: =SUMIF('Option 3'!$A$30:$A$54,$Y$11,'Option 3'!$S$30:$S$54) -> 0 | AC11: =SUMIF('Option 1'!$A$30:$A$54,$Y$11,'Option 1'!$R$30:$R$54) -> 2996 | AD11: =SUMIF('Option 2'!$A$30:$A$41,$Y$11,'Option 2'!$R$30:$R$41) -> 0 | AE11: =SUMIF('Option 3'!$A$30:$A$54,$Y$11,'Option 3'!$R$30:$R$54) -> 0
D12: =$A12 -> 0 | H12: =$A12 -> 0 | L12: =$A12 -> 0 | P12: Future | Total Cost Chart | Option 2 | Total Cost Summation | Q12: =SUM($N$6:$N$11) -> 2436335 | Y12: Utilities | Z12: =SUMIF('Option 1'!$A$30:$A$54,$Y$12,'Option 1'!$S$30:$S$54) -> 658510 | AA12: =SUMIF('Option 2'!$A$30:$A$41,$Y$12,'Option 2'!$S$30:$S$41) -> 0 | AB12: =SUMIF('Option 3'!$A$30:$A$54,$Y$12,'Option 3'!$S$30:$S$54) -> 0 | AC12: =SUMIF('Option 1'!$A$30:$A$54,$Y$12,'Option 1'!$R$30:$R$54) -> 199710 | AD12: =SUMIF('Option 2'!$A$30:$A$41,$Y$12,'Option 2'!$R$30:$R$41) -> 0 | AE12: =SUMIF('Option 3'!$A$30:$A$54,$Y$12,'Option 3'!$R$30:$R$54) -> 0
D13: 0 | H13: 0 | L13: 0 | P13: Future | Total Cost Chart | Option 3 | Total Cost Summation | Q13: =SUM($O$6:$O$11) -> 0 | Y13: Security | Z13: =SUMIF('Option 1'!$A$30:$A$54,$Y$13,'Option 1'!$S$30:$S$54) -> 11321 | AA13: =SUMIF('Option 2'!$A$30:$A$41,$Y$13,'Option 2'!$S$30:$S$41) -> 0 | AB13: =SUMIF('Option 3'!$A$30:$A$54,$Y$13,'Option 3'!$S$30:$S$54) -> 0 | AC13: =SUMIF('Option 1'!$A$30:$A$54,$Y$13,'Option 1'!$R$30:$R$54) -> 8321 | AD13: =SUMIF('Option 2'!$A$30:$A$41,$Y$13,'Option 2'!$R$30:$R$41) -> 0 | AE13: =SUMIF('Option 3'!$A$30:$A$54,$Y$13,'Option 3'!$R$30:$R$54) -> 0
D14: 0 | H14: 0 | L14: 0 | P14: Lifetime | Total Cost Chart | Total Savings From BLANK | Shows name of winning option | Q14: =_xludf.ifs($Q$6>$Q$7,$C$7, $Q$6=$Q$7, "Both solutions are equal.",$Q$6<$Q$7,$C$6) ->  | Y14: Misc. Data Center | Z14: =SUMIF('Option 1'!$A$30:$A$54,$Y$14,'Option 1'!$S$30:$S$54) -> 0 | AA14: =SUMIF('Option 2'!$A$30:$A$41,$Y$14,'Option 2'!$S$30:$S$41) -> 0 | AB14: =SUMIF('Option 3'!$A$30:$A$54,$Y$14,'Option 3'!$S$30:$S$54) -> 0 | AC14: =SUMIF('Option 1'!$A$30:$A$54,$Y$14,'Option 1'!$R$30:$R$54) -> 0 | AD14: =SUMIF('Option 2'!$A$30:$A$41,$Y$14,'Option 2'!$R$30:$R$41) -> 0 | AE14: =SUMIF('Option 3'!$A$30:$A$54,$Y$14,'Option 3'!$R$30:$R$54) -> 0
D15: 0 | H15: 0 | L15: 0 | P15: Past | Total Cost Chart | Total Savings From BLANK | Shows name of winning option | Q15: =_xludf.ifs($Q$9>$Q$10,$C$7, $Q$9=$Q$10, "Both solutions are equal.",$Q$9<$Q$10,$C$6) ->  | Y15: IT Solutions | Z15: =SUMIF('Option 1'!$A$56:$A$80,$Y$15,'Option 1'!$S$56:$S$80) -> 358996 | AA15: =SUMIF('Option 2'!$A$56:$A$67,$Y$15,'Option 2'!$S$56:$S$67) -> 45000 | AB15: =SUMIF('Option 3'!$A$56:$A$80,$Y$15,'Option 3'!$S$56:$S$80) -> 0 | AC15: =SUMIF('Option 1'!$A$56:$A$80,$Y$15,'Option 1'!$R$56:$R$80) -> 232996 | AD15: =SUMIF('Option 2'!$A$56:$A$67,$Y$15,'Option 2'!$R$56:$R$67) -> 0 | AE15: =SUMIF('Option 3'!$A$56:$A$80,$Y$15,'Option 3'!$R$56:$R$80) -> 0
D16: 0 | H16: 0 | L16: 0 | P16: Future | Total Cost Chart | Total Savings From BLANK | Shows name of winning option | Q16: =_xludf.ifs($Q$11>$Q$12,$C$7, $Q$11=$Q$12, "Both solutions are equal.",$Q$11<$Q$12,$C$6) ->  | Y16: SaaS Solutions | Z16: =SUMIF('Option 1'!$A$56:$A$80,$Y$16,'Option 1'!$S$56:$S$80) -> 12471 | AA16: =SUMIF('Option 2'!$A$56:$A$67,$Y$16,'Option 2'!$S$56:$S$67) -> 728349 | AB16: =SUMIF('Option 3'!$A$56:$A$80,$Y$16,'Option 3'!$S$56:$S$80) -> 0 | AC16: =SUMIF('Option 1'!$A$56:$A$80,$Y$16,'Option 1'!$R$56:$R$80) -> 5991 | AD16: =SUMIF('Option 2'!$A$56:$A$67,$Y$16,'Option 2'!$R$56:$R$67) -> 449349 | AE16: =SUMIF('Option 3'!$A$56:$A$80,$Y$16,'Option 3'!$R$56:$R$80) -> 0
D17: 0 | H17: 0 | L17: 0 | P17: Lifetime | Total Cost Chart | Total Savings from BLANK | Shows delta savings | Q17: =_xludf.ifs($Q$14=$C$6,$Q$7-$Q$6,$Q$14=$C$7,$Q$6-$Q$7,$Q$14="Both solutions are equal.",0) ->  | Y17: Business Software | Z17: =SUMIF('Option 1'!$A$56:$A$80,$Y$17,'Option 1'!$S$56:$S$80) -> 2208124 | AA17: =SUMIF('Option 2'!$A$56:$A$67,$Y$17,'Option 2'!$S$56:$S$67) -> 455467 | AB17: =SUMIF('Option 3'!$A$56:$A$80,$Y$17,'Option 3'!$S$56:$S$80) -> 0 | AC17: =SUMIF('Option 1'!$A$56:$A$80,$Y$17,'Option 1'!$R$56:$R$80) -> 1065124 | AD17: =SUMIF('Option 2'!$A$56:$A$67,$Y$17,'Option 2'!$R$56:$R$67) -> 238987 | AE17: =SUMIF('Option 3'!$A$56:$A$80,$Y$17,'Option 3'!$R$56:$R$80) -> 0
D18: 0 | H18: 0 | L18: 0 | P18: Past | Total Cost Chart | Total Savings from BLANK | Shows delta savings | Q18: =$Q$9 -> 7665885 | Y18: Misc. Applications | Z18: =SUMIF('Option 1'!$A$56:$A$80,$Y$18,'Option 1'!$S$56:$S$80) -> 0 | AA18: =SUMIF('Option 2'!$A$56:$A$67,$Y$18,'Option 2'!$S$56:$S$67) -> 0 | AB18: =SUMIF('Option 3'!$A$56:$A$80,$Y$18,'Option 3'!$S$56:$S$80) -> 0 | AC18: =SUMIF('Option 1'!$A$56:$A$80,$Y$18,'Option 1'!$R$56:$R$80) -> 0 | AD18: =SUMIF('Option 2'!$A$56:$A$67,$Y$18,'Option 2'!$R$56:$R$67) -> 0 | AE18: =SUMIF('Option 3'!$A$56:$A$80,$Y$18,'Option 3'!$R$56:$R$80) -> 0
D19: 0 | H19: 0 | L19: 0 | P19: Future | Total Cost Chart | Total Savings from BLANK | Shows delta savings | Q19: =_xludf.ifs($Q$16=$C$6,$Q$12-$Q$11,$Q$16=$C$7,$Q$11-$Q$12,$Q$16="Both solutions are equal.",0) ->  | Y19: Laptops | Z19: =SUMIF('Option 1'!$A$82:$A$106,$Y$19,'Option 1'!$S$82:$S$106) -> 491580 | AA19: =SUMIF('Option 2'!$A$82:$A$106,$Y$19,'Option 2'!$S$82:$S$106) -> 495603 | AB19: =SUMIF('Option 3'!$A$82:$A$106,$Y$19,'Option 3'!$S$82:$S$106) -> 0 | AC19: =SUMIF('Option 1'!$A$82:$A$106,$Y$19,'Option 1'!$R$82:$R$106) -> 191580 | AD19: =SUMIF('Option 2'!$A$82:$A$106,$Y$19,'Option 2'!$R$82:$R$106) -> 195603 | AE19: =SUMIF('Option 3'!$A$82:$A$106,$Y$19,'Option 3'!$R$82:$R$106) -> 0
D20: 0 | H20: 0 | L20: 0 | P20: Lifetime | Total Cost Chart | Total Savings from BLANK | Shows percent savings | Q20: =CONCATENATE("(" & ROUND((((MAX($Q$6:$Q$7)-MIN($Q$6:$Q$7))/MIN($Q$6:$Q$7))*100),0) & "% over " & 'Template Instructions'!$F$20 &" years)") -> (126% over 5 years) | Y20: Smartphones | Z20: =SUMIF('Option 1'!$A$82:$A$106,$Y$20,'Option 1'!$S$82:$S$106) -> 43351 | AA20: =SUMIF('Option 2'!$A$82:$A$106,$Y$20,'Option 2'!$S$82:$S$106) -> 43351 | AB20: =SUMIF('Option 3'!$A$82:$A$106,$Y$20,'Option 3'!$S$82:$S$106) -> 0 | AC20: =SUMIF('Option 1'!$A$82:$A$106,$Y$20,'Option 1'!$R$82:$R$106) -> 22351 | AD20: =SUMIF('Option 2'!$A$82:$A$106,$Y$20,'Option 2'!$R$82:$R$106) -> 22351 | AE20: =SUMIF('Option 3'!$A$82:$A$106,$Y$20,'Option 3'!$R$82:$R$106) -> 0
D21: 0 | H21: 0 | L21: 0 | P21: Past | Total Cost Chart | Total Savings from BLANK | Shows percent savings | Q21: =CONCATENATE("(" & ROUND((((MAX($Q$9:$Q$10)-MIN($Q$9:$Q$10))/MIN($Q$9:$Q$10))*100),0) & "% over " & 'Template Instructions'!$F$20 &" years)") -> (148% over 5 years) | Y21: Data plans | Z21: =SUMIF('Option 1'!$A$82:$A$106,$Y$21,'Option 1'!$S$82:$S$106) -> 125649 | AA21: =SUMIF('Option 2'!$A$82:$A$106,$Y$21,'Option 2'!$S$82:$S$106) -> 125649 | AB21: =SUMIF('Option 3'!$A$82:$A$106,$Y$21,'Option 3'!$S$82:$S$106) -> 0 | AC21: =SUMIF('Option 1'!$A$82:$A$106,$Y$21,'Option 1'!$R$82:$R$106) -> 81549 | AD21: =SUMIF('Option 2'!$A$82:$A$106,$Y$21,'Option 2'!$R$82:$R$106) -> 81549 | AE21: =SUMIF('Option 3'!$A$82:$A$106,$Y$21,'Option 3'!$R$82:$R$106) -> 0
D22: 0 | H22: 0 | L22: 0 | P22: Future | Total Cost Chart | Total Savings from BLANK | Shows percent savings | Q22: =CONCATENATE("(" & ROUND((((MAX($Q$11:$Q$12)-MIN($Q$11:$Q$12))/MIN($Q$11:$Q$12))*100),0) & "% over " & 'Template Instructions'!$F$20 &" years)") -> (98% over 5 years) | Y22: Peripherals | Z22: =SUMIF('Option 1'!$A$82:$A$106,$Y$22,'Option 1'!$S$82:$S$106) -> 0 | AA22: =SUMIF('Option 2'!$A$82:$A$106,$Y$22,'Option 2'!$S$82:$S$106) -> 0 | AB22: =SUMIF('Option 3'!$A$82:$A$106,$Y$22,'Option 3'!$S$82:$S$106) -> 0 | AC22: =SUMIF('Option 1'!$A$82:$A$106,$Y$22,'Option 1'!$R$82:$R$106) -> 0 | AD22: =SUMIF('Option 2'!$A$82:$A$106,$Y$22,'Option 2'!$R$82:$R$106) -> 0 | AE22: =SUMIF('Option 3'!$A$82:$A$106,$Y$22,'Option 3'!$R$82:$R$106) -> 0
D23: 0 | H23: 0 | L23: 0 | P23: Lifetime | Total Cost Chart | Total Savings from BLANK | Show message about total savings | Q23: =CONCATENATE("Total savings from using " & $Q$14) ->  | Y23: Misc. Hardware | Z23: =SUMIF('Option 1'!$A$82:$A$106,$Y$23,'Option 1'!$S$82:$S$106) -> 0 | AA23: =SUMIF('Option 2'!$A$82:$A$106,$Y$23,'Option 2'!$S$82:$S$106) -> 0 | AB23: =SUMIF('Option 3'!$A$82:$A$106,$Y$23,'Option 3'!$S$82:$S$106) -> 0 | AC23: =SUMIF('Option 1'!$A$82:$A$106,$Y$23,'Option 1'!$R$82:$R$106) -> 0 | AD23: =SUMIF('Option 2'!$A$82:$A$106,$Y$23,'Option 2'!$R$82:$R$106) -> 0 | AE23: =SUMIF('Option 3'!$A$82:$A$106,$Y$23,'Option 3'!$R$82:$R$106) -> 0
D24: 0 | H24: 0 | L24: 0 | P24: Past | Total Cost Chart | Total Savings from BLANK | Show message about total savings | Q24: =CONCATENATE("Total Cost of Ownership: " & $C$6) -> Total Cost of Ownership: Existing Infrastructure | Y24: Salaries | Z24: =SUMIF('Option 1'!$A$108:$A$132,$Y$24,'Option 1'!$S$108:$S$132) -> 6747623 | AA24: =SUMIF('Option 2'!$A$108:$A$119,$Y$24,'Option 2'!$S$108:$S$119) -> 2674173 | AB24: =SUMIF('Option 3'!$A$108:$A$132,$Y$24,'Option 3'!$S$108:$S$132) -> 0 | AC24: =SUMIF('Option 1'!$A$108:$A$132,$Y$24,'Option 1'!$R$108:$R$132) -> 2407623 | AD24: =SUMIF('Option 2'!$A$108:$A$119,$Y$24,'Option 2'!$R$108:$R$119) -> 954173 | AE24: =SUMIF('Option 3'!$A$108:$A$132,$Y$24,'Option 3'!$R$108:$R$132) -> 0
P25: Future | Total Cost Chart | Total Savings from BLANK | Show message about total savings | Q25: =CONCATENATE("Total savings from using " & $Q$16) ->  | Y25: Consulting Services | Z25: =SUMIF('Option 1'!$A$108:$A$132,$Y$25,'Option 1'!$S$108:$S$132) -> 506281 | AA25: =SUMIF('Option 2'!$A$108:$A$119,$Y$25,'Option 2'!$S$108:$S$119) -> 482281 | AB25: =SUMIF('Option 3'!$A$108:$A$132,$Y$25,'Option 3'!$S$108:$S$132) -> 0 | AC25: =SUMIF('Option 1'!$A$108:$A$132,$Y$25,'Option 1'!$R$108:$R$132) -> 266281 | AD25: =SUMIF('Option 2'!$A$108:$A$119,$Y$25,'Option 2'!$R$108:$R$119) -> 266281 | AE25: =SUMIF('Option 3'!$A$108:$A$132,$Y$25,'Option 3'!$R$108:$R$132) -> 0
P26: Lifetime | Dashboard Title | Q26: =CONCATENATE("Lifetime Total Cost of Ownership Comparison: " & 'Reference Formulas'!$C$6 & " vs " & 'Reference Formulas'!$C$7 & IF(ISTEXT(C8) = TRUE, " vs " & 'Reference Formulas'!$C$8,"")) -> Lifetime Total Cost of Ownership Comparison: Existing Infrastructure vs Cloud Alternative | Y26: Professional Development | Z26: =SUMIF('Option 1'!$A$108:$A$132,$Y$26,'Option 1'!$S$108:$S$132) -> 655475 | AA26: =SUMIF('Option 2'!$A$108:$A$119,$Y$26,'Option 2'!$S$108:$S$119) -> 358426 | AB26: =SUMIF('Option 3'!$A$108:$A$132,$Y$26,'Option 3'!$S$108:$S$132) -> 0 | AC26: =SUMIF('Option 1'!$A$108:$A$132,$Y$26,'Option 1'!$R$108:$R$132) -> 55475 | AD26: =SUMIF('Option 2'!$A$108:$A$119,$Y$26,'Option 2'!$R$108:$R$119) -> 166426 | AE26: =SUMIF('Option 3'!$A$108:$A$132,$Y$26,'Option 3'!$R$108:$R$132) -> 0
P27: Future | Dashboard Title | Q27: =CONCATENATE("Projected Total Cost of Ownership Comparison: " & 'Reference Formulas'!$C$6 & " vs " & 'Reference Formulas'!$C$7 & IF(ISTEXT(C8) = TRUE, " vs " & 'Reference Formulas'!$C$8,"")) -> Projected Total Cost of Ownership Comparison: Existing Infrastructure vs Cloud Alternative | Y27: Misc. Personnel | Z27: =SUMIF('Option 1'!$A$108:$A$132,$Y$27,'Option 1'!$S$108:$S$132) -> 0 | AA27: =SUMIF('Option 2'!$A$108:$A$119,$Y$27,'Option 2'!$S$108:$S$119) -> 0 | AB27: =SUMIF('Option 3'!$A$108:$A$132,$Y$27,'Option 3'!$S$108:$S$132) -> 0 | AC27: =SUMIF('Option 1'!$A$108:$A$132,$Y$27,'Option 1'!$R$108:$R$132) -> 0 | AD27: =SUMIF('Option 2'!$A$108:$A$119,$Y$27,'Option 2'!$R$108:$R$119) -> 0 | AE27: =SUMIF('Option 3'!$A$108:$A$132,$Y$27,'Option 3'!$R$108:$R$132) -> 0
Y28: Installation & Setup | Z28: =SUMIF('Option 1'!$A$134:$A$158,$Y$28,'Option 1'!$S$134:$S$158) -> 38262 | AA28: =SUMIF('Option 2'!$A$134:$A$146,$Y$28,'Option 2'!$S$134:$S$146) -> 27937 | AB28: =SUMIF('Option 3'!$A$134:$A$158,$Y$28,'Option 3'!$S$134:$S$158) -> 0 | AC28: =SUMIF('Option 1'!$A$134:$A$158,$Y$28,'Option 1'!$R$134:$R$158) -> 19047 | AD28: =SUMIF('Option 2'!$A$134:$A$146,$Y$28,'Option 2'!$R$134:$R$146) -> 14014 | AE28: =SUMIF('Option 3'!$A$134:$A$158,$Y$28,'Option 3'!$R$134:$R$158) -> 0
Y29: Professional Services | Z29: =SUMIF('Option 1'!$A$134:$A$158,$Y$29,'Option 1'!$S$134:$S$158) -> 0 | AA29: =SUMIF('Option 2'!$A$134:$A$146,$Y$29,'Option 2'!$S$134:$S$146) -> 0 | AB29: =SUMIF('Option 3'!$A$134:$A$158,$Y$29,'Option 3'!$S$134:$S$158) -> 0 | AC29: =SUMIF('Option 1'!$A$134:$A$158,$Y$29,'Option 1'!$R$134:$R$158) -> 0 | AD29: =SUMIF('Option 2'!$A$134:$A$146,$Y$29,'Option 2'!$R$134:$R$146) -> 0 | AE29: =SUMIF('Option 3'!$A$134:$A$158,$Y$29,'Option 3'!$R$134:$R$158) -> 0
Y30: Training | Z30: =SUMIF('Option 1'!$A$134:$A$158,$Y$30,'Option 1'!$S$134:$S$158) -> 0 | AA30: =SUMIF('Option 2'!$A$134:$A$146,$Y$30,'Option 2'!$S$134:$S$146) -> 20000 | AB30: =SUMIF('Option 3'!$A$134:$A$158,$Y$30,'Option 3'!$S$134:$S$158) -> 0 | AC30: =SUMIF('Option 1'!$A$134:$A$158,$Y$30,'Option 1'!$R$134:$R$158) -> 0 | AD30: =SUMIF('Option 2'!$A$134:$A$146,$Y$30,'Option 2'!$R$134:$R$146) -> 20000 | AE30: =SUMIF('Option 3'!$A$134:$A$158,$Y$30,'Option 3'!$R$134:$R$158) -> 0
Y31: Misc. Rollout | Z31: =SUMIF('Option 1'!$A$134:$A$158,$Y$31,'Option 1'!$S$134:$S$158) -> 0 | AA31: =SUMIF('Option 2'!$A$134:$A$146,$Y$31,'Option 2'!$S$134:$S$146) -> 0 | AB31: =SUMIF('Option 3'!$A$134:$A$158,$Y$31,'Option 3'!$S$134:$S$158) -> 0 | AC31: =SUMIF('Option 1'!$A$134:$A$158,$Y$31,'Option 1'!$R$134:$R$158) -> 0 | AD31: =SUMIF('Option 2'!$A$134:$A$146,$Y$31,'Option 2'!$R$134:$R$146) -> 0 | AE31: =SUMIF('Option 3'!$A$134:$A$158,$Y$31,'Option 3'!$R$134:$R$158) -> 0
